Workbook

Sheet Welcome
B6: Support Services Investment Appraisal Model Guide
B8: Model Description | C8: To assess the viability of a Support Services project and the value it generates. In the context of a business case, the primary objective of investment appraisal is to place a value on benefits so that the costs are justified.
C11: This Model is primarily designed for Support Services projects and has been designed to evaluate the financial benefits of a single construction or refurbishment project.
C13: This includes the following areas:
C14: - Accommodation | G14: - ICT
C15: - Advancement | G15: - Offices
C16: - Careers | G16: - Library
C17: - Catering | G17: - Registry
C18: - Conferences & Events | G18: - Research Office
C19: - Early Years Education Centre | G19: - Student HUB
C20: - Estates Facilities/Projects | G20: - Sports
C21: - Human Resources
B24: Instructions for use | C24: See Model Guide
C25: Enter scenarios on the Inputs page
B27: Input Sources | C27: Judgement
B29: Colour codes | C29: 1 | E29: An input cell | G29: NB Uses Cell styles
B31: Audit checks
B33: Recalculation Status | C33: =INFO("RECALC") -> Automatic
B35: Model designed to run on | C35: Excel 2013 | F35: Version you are using: | H35: =INFO("RELEASE") -> 15.0
B37: Authors | C37: Shahnura Hussain and Nicola Holt
B39: Change Log | C39: Date | D39: Who | E39: Development
C41: 2017-03-30 | D41: SH | E41: Formulas
C42: 2017-05-23 | D42: SH | E42: Base Case and 2x Scenarios all in Output Sheet

Sheet Model Guide
B6: Support Services Investment Appraisal Model Guide
B8: The Model will forecast a summary Income and Expenditure Statement (excluding depreciation), and uses the following capital appraisal measures:
C9: - Net Present Value
C10: - Internal Rate of Return
C11: - Modified Internal Rate of Return
C12: - Payback Period
B14: Please do not insert any rows in the Inputs Tab | D14: Please enter all income as negative and expenses as positive.
B15: Please enter all amounts in £'000s
B16: The Model can produce NPVs over a 50 year duration.
B18: The year of construction cannot begin from more than two years than the current year. The longest construction period is three years.
B20: USER INPUTS AND COMPLETING THE MODEL
B22: The template is structured across several tabs as follows:
C23: Tab Name: | E23: Description:
C25: 1. Project Dashboard | E25: This sheet contains the variables, which are applied to the inputs. It highlights key outputs of the investment modelled scenario against sensitivities applied. It compares the outputs of the scenarios which are generated by the sensitivities inserted in the input sheet. Changes in this sheet should be justified in 6.Notes
C26: 2. Model Assumptions | E26: This sheet is where the general assumption inputs are inputted. This includes the start year of construction, duration and fixed rates which should not be altered. You should only complete the cells which are shaded green.
C27: 3. Input Sheet | E27: This sheet is where all estimates relating to expected costs and associated income should be entered. You should only complete the cells which are shaded green.
C28: 4. Output Sheet | E28: This sheet converts the inputs into summarised Income and Expenditure for a project with the cash flow data based on certain criteria with the use of the investment appraisal techniques.
C29: 5. Notes | E29: This sheet is for additional information or calculations.
B31: Completing Individual Tabs
B33: 1. Project Dashboard
B35: The Project Dashboard sheet gathers key data, ratios and financial headlines from the Input sheet. It highlights the key outputs of the investment modelled scenario against sensitivities applied.
B36: This is presented along with key messages for the reader.
B38: This sheet will accompany the Business Case Summary in papers required to Estates Facilities.
B40: Scenario Comparer | C40: The Project is illustrated to show the modelled scenario against 2 sensitivities.
C42: The scenario comparer takes data from the input sheet. The purpose is to illustrate the variations between sensitivities, so that an assessment can be made as to the realism of certain assumptions.
B44: KPIs | C44: A range of the College's KPIs for the project are based on current inputs.
B46: 2. Model Assumptions
C48: The Model has been prepared on an annual basis and the Net Present Value (NPV) calculations have been made on an assumed discount rate of 4% for the future cashflows.
C49: The NPV calculations have only been discounted back to the start of the construction date.
C51: - Please complete the green cells.
C52: Values in the red cells are provided by Capital Investment & Appraisal Team. If you change these please provide justification on the Notes Tab.
B54: 3. Input Sheet
B55: Balance Sheet
C56: Enter Capital Initial Start Up costs in the Green Cells
B58: Income Statement
C59: Complete the necessary cells in relation to the Investment Project.
C61: Please enter the 'Source' reference you are obtaining your data from
B64: 4. Output Sheet
B66: This sheet brings together the inputs entered in the inputs sheet for the project with the cash flow NPV, from year 0 (project initiation) to year 50 (model end)
B68: A summary of the following capital measures is provided at the end of the tab.
C69: - Net Present Value
C70: - Internal Rate of Return
C71: - Modified Internal Rate of Return
C72: - Payback Period
B74: The sheet also presents a cash flow forecast (based on revenue and capital spend).
B76: 5. Notes
B78: Any additional information or calculations are to be entered and explained here.
B80: Comments
B82: Please send comments or report issues to either the Capital Accountant or Maria Knight (Head of Capital Investment & Appraisal) so that the Model can be further refined or adapted where there is value in making specific changes.

Sheet 1. Project Dashboard
B2: =NameofProject&" appraisal - PROJECT DASHBOARD" -> Investment A appraisal - PROJECT DASHBOARD
H3: Project Approval Process
B4: Summary of Options
C5: =NameofProject -> Investment A | D5: =NameofProject -> Investment A | E5: =NameofProject -> Investment A | H5: Project Threshold | I5: Project Board Approval | J5: Minimum Investment Appraisal
C6: ='3. Input Sheet '!H5 -> Base Case | D6: ='3. Input Sheet '!I5 -> Upper Case | E6: ='3. Input Sheet '!J5 -> Lower Case | H6: Above £150k-£1m | I6: PRM Board | J6: Discounted Payback Period
B7: Key metrics (£) | H7: £1m-£10m | I7: Resource Allocation Board | J7: Discounted Payback Period, NPV, IRR & MIRR
B8: Initial capital cost | C8: =Total_capital_Base -> -1064216.939 | D8: =Total_capital_upper -> -526031.8418 | E8: =Total_capital_lower -> -1210538.545 | H8: Above £10m | I8: Council | J8: NPV, IRR, MIRR
B9: Total revenue | C9: ='4. Output Sheet'!F37 -> 1108794.311 | D9: ='4. Output Sheet'!F109 -> 1179394.58 | E9: ='4. Output Sheet'!F182 -> 489760.4063
B10: Total expenditure | C10: ='4. Output Sheet'!F53 -> -277581.598 | D10: ='4. Output Sheet'!F125 -> -88907.57643 | E10: ='4. Output Sheet'!F198 -> -102270.9426
B11: Operating free cash | C11: ='4. Output Sheet'!F59 -> 831212.7126 | D11: ='4. Output Sheet'!F131 -> 1090487.003 | E11: ='4. Output Sheet'!F204 -> 387489.4637
B12: Terminal value | C12: ='4. Output Sheet'!F55 -> 640042.2721 | D12: ='4. Output Sheet'!F127 -> 704046.4993 | E12: ='4. Output Sheet'!F200 -> 576038.0449
B13: Yield on cash | C13: ='4. Output Sheet'!C73 -> 0.07100506416 | D13: ='4. Output Sheet'!C145 -> 0.1884585195 | E13: ='4. Output Sheet'!C218 -> 0.02909970527
B14: NPV (£) | C14: ='4. Output Sheet'!C67 -> 136149.3626 | D14: ='4. Output Sheet'!C139 -> 659114.6919 | E14: ='4. Output Sheet'!C212 -> -320730.4625
B15: IRR | C15: ='4. Output Sheet'!C68 -> 0.1296054663 | D15: ='4. Output Sheet'!C140 -> 0.3019665838 | E15: ='4. Output Sheet'!C213 -> -0.06324827302
B16: MIRR | C16: ='4. Output Sheet'!C69 -> 0.09313377196 | D16: ='4. Output Sheet'!C141 -> 0.1790740876 | E16: ='4. Output Sheet'!C214 -> 0.01078259692
B17: Payback year | C17: ='4. Output Sheet'!F71 -> 6 years 10 months | D17: ='4. Output Sheet'!F143 -> 3 years 8 months | E17: ='4. Output Sheet'!F216 -> 0 years 0 months
B19: Key assumptions
B20: Construction period (Years) | C20: =Year_to_commence_operations_Base -> 1.99 | D20: =Year_to_commence_operations_upper -> 1.99 | E20: =Year_to_commence_operations_lower -> 1.99
B21: Refurbishment period (YearS) | C21: =Refurbishment_schedule__every_x_years_Base -> 5 | D21: =Refurbishment_schedule__every_x_years_upper -> 6 | E21: =Refurbishment_schedule__every_x_years_lower -> 4
B22: Inflation measure | C22: =Inflation -> 0.025 | D22: =Inflation -> 0.025 | E22: =Inflation -> 0.025
B23: Discount rate | C23: =Discount_rate -> 0.065 | D23: =Discount_rate -> 0.065 | E23: =Discount_rate -> 0.065
B24: Refurbishment factor applied to all income/expenditure | C24: =Refurbishment_factor_Base -> 0.5 | D24: =Refurbishment_factor_upper -> 0.5 | E24: =Refurbishment_factor_lower -> 0.5
B27: KPIs | C27: =NameofProject -> Investment A | D27: =NameofProject -> Investment A | E27: =NameofProject -> Investment A
C28: ='3. Input Sheet '!H5 -> Base Case | D28: ='3. Input Sheet '!I5 -> Upper Case | E28: ='3. Input Sheet '!J5 -> Lower Case
B29: Rental yield | C29: =((RentalSpaceIncomeRent_per_sq_ft_Base*RentalSpaceIncomeRental_area__sq_ft_Base)/Terminal_value_Base)*100 -> 0.5 | D29: =((RentalSpaceIncomeRent_per_sq_ft_upper*RentalSpaceIncomeRental_area__sq_ft_upper)/Terminal_value_upper)*100 -> 0 | E29: =((RentalSpaceIncomeRent_per_sq_ft_lower*RentalSpaceIncomeRental_area__sq_ft_lower)/Terminal_value_lower)*100 -> 0
B30: Construction period (years) | C30: =Number_of_years_for_capex_Base -> 3 | D30: =Number_of_years_for_capex_upper -> 2 | E30: =Number_of_years_for_capex_lower -> 4
B31: Average profit margin | C31: =AVERAGE('4. Output Sheet'!I63:AH63) -> 1.075 | D31: =AVERAGE('4. Output Sheet'!I135:AH135) -> 4.679487179 | E31: =AVERAGE('4. Output Sheet'!I208:AH208) -> 1.353146853

Sheet 2. Model Assumptions
A1: =CONCATENATE("Support Services Model: ",D6," - ",OFFSET(E1,0,Scenario)," Generated on: ",TEXT(NOW(),"dd mmm yy")) -> Support Services Model: Investment A - Generated on: 04 Aug 17
A2: Model Assumptions
B4: General Inputs
B6: Name of project | D6: Investment A
B8: Start year (yr 0) | D8: 2016
B9: Number of years (max = ) | D9: 10
B10: Inflation | D10: 0.025
B11: Discount rate | D11: 0.065

Sheet 3. Input Sheet
A1: ='2. Model Assumptions'!D6&" Analysis" -> Investment A Analysis
A2: Input Sheet
C4: Scenario | D4: 1 | H4: 1 | I4: 2 | J4: 3
E5: Unit | H5: Base Case | I5: Upper Case | J5: Lower Case | L5: Source
A7: Balance sheet
A8: Initial start up
B9: Initial capital costs | D9: =OFFSET(G9,0,Scenario) -> 450000 | E9: £ | H9: =(H10*H11)+(H10*H12)+H13 -> 450000 | I9: =(I10*I11)+(I10*I12)+I13 -> 405000 | J9: =(J10*J11)+(J10*J12)+J13 -> 495000
B10: Total area (sqft) | D10: 5000 | E10: £ | H10: 5000 | I10: =H10 -> 5000 | J10: =I10 -> 5000
B11: Construction costs (£/sq ft) | D11: 20 | E11: £ | H11: 20 | I11: =H11*0.9 -> 18 | J11: =H11*1.1 -> 22
B12: Fit out costs (£/sq ft) | D12: 10 | E12: £ | H12: 10 | I12: =H12*0.9 -> 9 | J12: =H12*1.1 -> 11
B13: Purchase cost | D13: 300000 | E13: £ | H13: 300000 | I13: =H13*0.9 -> 270000 | J13: 330000
B14: Professional fees | D14: 0 | E14: £ | H14: 0 | I14: 0 | J14: 0
B15: VAT | D15: 0 | E15: £ | H15: 0 | I15: 0 | J15: 0
B16: Other fees/duties | D16: 0 | E16: £ | H16: 0 | I16: 0 | J16: 0
B17: Contingency | D17: 0 | E17: £ | H17: 0 | I17: 0 | J17: 0
B18: Number of years for capex | D18: =OFFSET(G18,0,Scenario) -> 3 | E18: Years | H18: 3 | I18: 2 | J18: 4
B19: Terminal value | D19: =OFFSET(G19,0,Scenario) -> 500000 | E19: £ | H19: 500000 | I19: =H19*1.1 -> 550000 | J19: =H19*0.9 -> 450000
B20: Refurbishment schedule (every x years) | D20: =OFFSET(G20,0,Scenario) -> 5 | E20: Years | H20: 5 | I20: 6 | J20: 4
B21: Refurbishment factor | D21: =OFFSET(G21,0,Scenario) -> 0.5 | E21: No. | H21: 0.5 | I21: 0.5 | J21: 0.5
B22: Refurbishment costs (£/sq ft) | D22: =OFFSET(G22,0,Scenario) -> 50 | E22: £ | H22: 50 | I22: 20 | J22: 60
A25: Income statement
B26: Year to commence operations | D26: =OFFSET(G26,0,Scenario)-0.01 -> 1.98 | E26: Years | H26: =2-0.01 -> 1.99 | I26: =2-0.01 -> 1.99 | J26: =2-0.01 -> 1.99
A28: Revenue generation
A29: Membership income
B30: No of members
B31: Yr 1 | C31: 1 | D31: =OFFSET(G31,0,Scenario) -> 0 | E31: No.
B32: Yr 2 | C32: 2 | D32: =OFFSET(G32,0,Scenario) -> 20 | E32: No. | H32: 20 | I32: =H32*1.1 -> 22 | J32: =H32*0.9 -> 18
B33: Yr 3 | C33: 3 | D33: 30 | E33: No. | H33: 30 | I33: =H33*1.1 -> 33 | J33: =H33*0.9 -> 27
B34: Yr 4 | C34: 4 | D34: 40 | E34: No. | H34: 40 | I34: 44 | J34: 36
B35: Yr 5 | C35: 5 | D35: 50 | E35: No. | H35: 50 | I35: 55 | J35: 45
B36: Yr 6 | C36: 6 | D36: 60 | E36: No. | H36: 60 | I36: 66 | J36: 54
B37: Yr 7 | C37: 7 | D37: 0 | E37: No.
B38: Yr 8 | C38: 8 | D38: 0 | E38: No.
B39: Yr 9 | C39: 9 | D39: 0 | E39: No.
B40: Yr 10 | C40: 10 | D40: 0 | E40: No.
B41: Yr 11 | C41: 11 | D41: 0 | E41: No.
B42: Yr 12 | C42: 12 | D42: 0 | E42: No.
B43: Yr 13 | C43: 13 | D43: 0 | E43: No.
B44: Yr 14 | C44: 14 | D44: 0 | E44: No.
B45: Yr 15 | C45: 15 | D45: 0 | E45: No.
B46: Yr 16 | C46: 16 | D46: 0 | E46: No.
B47: Yr 17 | C47: 17 | D47: 0 | E47: No.
B48: Yr 18 | C48: 18 | D48: 0 | E48: No.
B49: Yr 19 | C49: 19 | D49: 0 | E49: No.
B50: Yr 20 | C50: 20 | D50: 0 | E50: No.
B51: Yr 21 | C51: 21 | D51: 0 | E51: No.
B52: Yr 22 | C52: 22 | D52: 0 | E52: No.
B53: Yr 23 | C53: 23 | D53: 0 | E53: No.
B54: Yr 24 | C54: 24 | D54: 0 | E54: No.
B55: Yr 25 | C55: 25 | D55: 0 | E55: No.
B56: Yr 26 | C56: 26 | D56: 0 | E56: No.
B57: Yr 27 | C57: 27 | D57: 0 | E57: No.
B58: Yr 28 | C58: 28 | D58: 0 | E58: No.
B59: Yr 29 | C59: 29 | D59: 0 | E59: No.
B60: Yr 30 | C60: 30 | D60: 0 | E60: No.
B61: Yr 31 | C61: 31 | D61: 0 | E61: No.
B62: Yr 32 | C62: 32 | D62: 0 | E62: No.
B63: Yr 33 | C63: 33 | D63: =OFFSET(G63,0,Scenario) -> 0 | E63: No.
B64: Yr 34 | C64: 34 | D64: 0 | E64: No.
B65: Yr 35 | C65: 35 | D65: 0 | E65: No.
B66: Yr 36 | C66: 36 | D66: 0 | E66: No.
B67: Yr 37 | C67: 37 | D67: 0 | E67: No.
B68: Yr 38 | C68: 38 | D68: 0 | E68: No.
B69: Yr 39 | C69: 39 | D69: 0 | E69: No.
B70: Yr 40 | C70: 40 | D70: 0 | E70: No.
B71: Yr 41 | C71: 41 | D71: 0 | E71: No.
B72: Yr 42 | C72: 42 | D72: 0 | E72: No.
B73: Yr 43 | C73: 43 | D73: 0 | E73: No.
B74: Yr 44 | C74: 44 | D74: 0 | E74: No.
B75: Yr 45 | C75: 45 | D75: 0 | E75: No.
B76: Yr 46 | C76: 46 | D76: 0 | E76: No.
B77: Yr 47 | C77: 47 | D77: 0 | E77: No.
B78: Yr 48 | C78: 48 | D78: 0 | E78: No.
B79: Yr 49 | C79: 49 | D79: 0 | E79: No.
B80: Yr 50 | C80: 50 | D80: 0 | E80: No.
B82: Membership rate (£ per annum) | D82: =OFFSET(G82,0,Scenario) -> 3000 | E82: £ | H82: 3000 | I82: =H82*1.1 -> 3300 | J82: =H82*0.9 -> 2700
D83: =OFFSET(G83,0,Scenario) -> 0
A85: Accommodation income
B86: Number of rooms | D86: =OFFSET(G86,0,Scenario) -> 20 | E86: No. | H86: 20 | I86: 25
B87: Price per night (£) | D87: =OFFSET(G87,0,Scenario) -> 20 | E87: £ | H87: 20 | I87: 25
B88: Nights in operation | D88: =OFFSET(G88,0,Scenario) -> 150 | E88: days | H88: 150 | I88: 100
B89: Occupancy | D89: =OFFSET(G89,0,Scenario) -> 0.9 | E89: % | H89: 0.9 | I89: 0.8
A91: Rental space income
B92: Rent per sq/ft | D92: =OFFSET(G92,0,Scenario) -> 50 | E92: £ | H92: 50
B93: Rental area (sq/ft) | D93: =OFFSET(G93,0,Scenario) -> 50 | E93: No. | H93: 50
B94: Rental | H94: 0
A96: Room & equipment hire income
B97: Number of rooms | D97: =OFFSET(G97,0,Scenario) -> 0 | E97: No. | H97: 0
B98: Blended rate (£/day) | D98: =OFFSET(G98,0,Scenario) -> 0 | E98: £ | H98: 0
B99: Days in operation | D99: =OFFSET(G99,0,Scenario) -> 0 | E99: Days | H99: 0
B100: Occupancy | D100: =OFFSET(G100,0,Scenario) -> 0 | E100: % | H100: 0
A102: Restaurant and private dining income
B103: Covers per day | D103: =OFFSET(G103,0,Scenario) -> 0 | E103: No. | H103: 0
B104: Price (£/cover) | D104: =OFFSET(G104,0,Scenario) -> 0 | E104: £ | H104: 0
B105: Days in operation | D105: =OFFSET(G105,0,Scenario) -> 0 | E105: Days | H105: 0
H106: 0
A108: Events income
B109: Number of events per annum | D109: =OFFSET(G109,0,Scenario) -> 0 | E109: No. | H109: 0
B110: Average takings (£/event) | D110: =OFFSET(G110,0,Scenario) -> 0 | E110: £ | H110: 0
B111: Events | D111: 0 | H111: 0
A113: Income from provision of services
B114: Average service price (£) | D114: =OFFSET(G114,0,Scenario) -> 0 | E114: £ | H114: 0
B115: Target service volume per annum | D115: =OFFSET(G115,0,Scenario) -> 0 | E115: No. | H115: 0
H116: 0
A118: Sale of goods income
B119: Average sales price (£) | D119: =OFFSET(G119,0,Scenario) -> 0 | E119: £ | H119: 0
B120: Target sales volume per annum | D120: =OFFSET(G120,0,Scenario) -> 0 | E120: No. | H120: 0
H121: 0
A123: Expenditure
B125: Staff costs | D125: =OFFSET(G125,0,Scenario) -> 10000 | E125: £ | H125: 10000 | I125: 9000 | J125: 11000
B127: Cost of sales | D127: =OFFSET(G127,0,Scenario) -> 20000 | E127: £ | H127: 20000
B129: Marketing costs per annum | D129: =OFFSET(G129,0,Scenario) -> 0 | E129: £
B130: Other opex | D130: =OFFSET(G130,0,Scenario) -> 0 | E130: £
B132: Estates costs
B133: Cost (£/sq ft) | D133: =OFFSET(G133,0,Scenario) -> 0 | E133: £
B134: Area (sq ft) | D134: =OFFSET(G134,0,Scenario) -> 0 | E134: No.
B136: Facilities Management costs
B137: Cost (£/sq ft) | D137: =OFFSET(G137,0,Scenario) -> 0 | E137: £
B138: Area (sq ft) | D138: =OFFSET(G138,0,Scenario) -> 0 | E138: No.
B140: Equipment cost | C140: (£/year) | D140: =OFFSET(G140,0,Scenario) -> 0 | E140: £
B141: Promotions and events | C141: (£/year) | D141: 0 | E141: £
B142: Other attributable central costs | C142: (£/year) | D142: 0 | E142: £
B143: Lease costs | C143: (£/year) | D143: 0 | E143: £
B144: Rates | C144: (£/year) | D144: 0 | E144: £
B145: Other costs | C145: (£/year - please define) | D145: 0 | E145: £
A147: Other factors
B148: Inflation (@ RPI) | D148: =OFFSET(G148,0,Scenario) -> 0.025 | E148: % | H148: ='2. Model Assumptions'!D10 -> 0.025 | I148: ='2. Model Assumptions'!D10 -> 0.025 | J148: ='2. Model Assumptions'!D10 -> 0.025
B149: Discount factor (RPI+2.5%) | D149: =OFFSET(G149,0,Scenario) -> 0.065 | E149: % | H149: ='2. Model Assumptions'!D11 -> 0.065 | I149: ='2. Model Assumptions'!D11 -> 0.065 | J149: ='2. Model Assumptions'!D11 -> 0.065
A155: Refurbishment input
B156: Schedule (from above) | D156: =OFFSET(G156,0,Scenario) -> 5 | H156: =H20 -> 5 | I156: =I20 -> 6 | J156: 4
B157: Length of appraisal | D157: =OFFSET(G157,0,Scenario) -> 10 | H157: ='2. Model Assumptions'!$D$9 -> 10 | I157: ='2. Model Assumptions'!$D$9 -> 10 | J157: ='2. Model Assumptions'!$D$9 -> 10
B159: Year of refurb
C160: Refurb 0 | D160: =OFFSET(G160,0,Scenario) -> 0 | G160: 0 | H160: 0 | I160: 0 | J160: 0
C161: Refurb 1 | D161: =OFFSET(G161,0,Scenario) -> 5 | G161: 1 | H161: =IFERROR(IF($H$156*G161<$H$157+1,$H$156*G161,""),"") -> 5 | I161: =IFERROR(IF($I$156*G161<$I$157+1,$I$156*G161,""),"") -> 6 | J161: =IFERROR(IF($J$156*G161<$J$157+1,$J$156*G161,""),"") -> 4
C162: Refurb 2 | D162: =OFFSET(G162,0,Scenario) -> 10 | G162: 2 | H162: 10 | J162: 8
C163: Refurb 3 | D163: =OFFSET(G163,0,Scenario) ->  | G163: 3
C164: Refurb 4 | D164: =OFFSET(G164,0,Scenario) ->  | G164: 4
C165: Refurb 5 | D165: 0 | G165: 5
C166: Refurb 6 | D166: 0 | G166: 6
C167: Refurb 7 | D167: 0 | G167: 7
C168: Refurb 8 | D168: 0 | G168: 8
C169: Refurb 9 | D169: 0 | G169: 9
C170: Refurb 10 | D170: 0 | G170: 10
C171: Refurb 11 | D171: 0 | G171: 11
C172: Refurb 12 | D172: 0 | G172: 12
C173: Refurb 13 | D173: 0 | G173: 13
C174: Refurb 14 | D174: 0 | G174: 14
C175: Refurb 15 | D175: 0 | G175: 15
C176: Refurb 16 | D176: 0 | G176: 16
C177: Refurb 17 | D177: 0 | G177: 17
C178: Refurb 18 | D178: 0 | G178: 18
C179: Refurb 19 | D179: 0 | G179: 19
C180: Refurb 20 | D180: 0 | G180: 20
C181: Refurb 21 | D181: 0 | G181: 21
C182: Refurb 22 | D182: 0 | G182: 22
C183: Refurb 23 | D183: 0 | G183: 23
C184: Refurb 24 | D184: 0 | G184: 24
C185: Refurb 25 | D185: 0 | G185: 25
C186: Refurb 26 | D186: 0 | G186: 26
C187: Refurb 27 | D187: 0 | G187: 27
C188: Refurb 28 | D188: 0 | G188: 28
C189: Refurb 29 | D189: 0 | G189: 29
C190: Refurb 30 | D190: 0 | G190: 30
C191: Refurb 31 | D191: 0 | G191: 31
C192: Refurb 32 | D192: 0 | G192: 32
C193: Refurb 33 | D193: 0 | G193: 33
C194: Refurb 34 | D194: 0 | G194: 34
C195: Refurb 35 | D195: 0 | G195: 35
C196: Refurb 36 | D196: 0 | G196: 36
C197: Refurb 37 | D197: 0 | G197: 37
C198: Refurb 38 | D198: 0 | G198: 38
C199: Refurb 39 | D199: 0 | G199: 39
C200: Refurb 40 | D200: 0 | G200: 40
C201: Refurb 41 | D201: 0 | G201: 41
C202: Refurb 42 | D202: 0 | G202: 42
C203: Refurb 43 | D203: 0 | G203: 43
C204: Refurb 44 | D204: 0 | G204: 44
C205: Refurb 45 | D205: 0 | G205: 45
C206: Refurb 46 | D206: 0 | G206: 46
C207: Refurb 47 | D207: 0 | G207: 47
C208: Refurb 48 | D208: 0 | G208: 48
C209: Refurb 49 | D209: 0 | G209: 49
C210: Refurb 50 | D210: 0 | G210: 50

Sheet 4. Output Sheet
A1: ='2. Model Assumptions'!D6&" Analysis" -> Investment A Analysis
A2: Output Sheet
A4: =CONCATENATE("Results generated ","on: ",TEXT(NOW(),"dd mmm yy")) -> Results generated on: 04 Aug 17
B5: BASE CASE
A6: Year | D6: Constant | E6: Units | F6: Total | G6: Sparkline | I6: ='2. Model Assumptions'!D8 -> 2016 | J6: =IFERROR(IF((J7+$I$6)<($I$6+Number_of_years__max+1),(J7+$I$6),""),"") -> 2017 | K6: 2018 | L6: 2019 | M6: 2020 | N6: 2021 | O6: 2022 | P6: 2023 | Q6: 2024 | R6: 2025 | S6: 2026
I7: 0 | J7: =IFERROR(IF((I7+1)<Number_of_years__max+1,(I7+1),""),"") -> 1 | K7: 2 | L7: 3 | M7: 4 | N7: 5 | O7: 6 | P7: 7 | Q7: 8 | R7: 9 | S7: 10
B9: Inflation Index | D9: =Inflation -> 0.025 | E9: % | I9: =(1+Inflation)^I7 -> 1 | J9: 1.025 | K9: 1.050625 | L9: 1.076890625 | M9: 1.103812891 | N9: 1.131408213 | O9: 1.159693418 | P9: 1.188685754 | Q9: 1.218402898 | R9: 1.24886297 | S9: 1.280084544
C11: Refurbishment | I11: =IF(IFERROR(VLOOKUP(I7,'3. Input Sheet '!$H$160:$H$210,1,FALSE),0)>0,"Yes","No") -> No | J11: =IF(IFERROR(VLOOKUP(J7,'3. Input Sheet '!$H$160:$H$210,1,FALSE),0)>0,"Yes","No") -> No | K11: =IF(IFERROR(VLOOKUP(K7,'3. Input Sheet '!$H$160:$H$210,1,FALSE),0)>0,"Yes","No") -> No | L11: =IF(IFERROR(VLOOKUP(L7,'3. Input Sheet '!$H$160:$H$210,1,FALSE),0)>0,"Yes","No") -> No | M11: =IF(IFERROR(VLOOKUP(M7,'3. Input Sheet '!$H$160:$H$210,1,FALSE),0)>0,"Yes","No") -> No | N11: =IF(IFERROR(VLOOKUP(N7,'3. Input Sheet '!$H$160:$H$210,1,FALSE),0)>0,"Yes","No") -> Yes | O11: =IF(IFERROR(VLOOKUP(O7,'3. Input Sheet '!$H$160:$H$210,1,FALSE),0)>0,"Yes","No") -> No | P11: =IF(IFERROR(VLOOKUP(P7,'3. Input Sheet '!$H$160:$H$210,1,FALSE),0)>0,"Yes","No") -> No | Q11: =IF(IFERROR(VLOOKUP(Q7,'3. Input Sheet '!$H$160:$H$210,1,FALSE),0)>0,"Yes","No") -> No | R11: =IF(IFERROR(VLOOKUP(R7,'3. Input Sheet '!$H$160:$H$210,1,FALSE),0)>0,"Yes","No") -> No | S11: =IF(IFERROR(VLOOKUP(S7,'3. Input Sheet '!$H$160:$H$210,1,FALSE),0)>0,"Yes","No") -> Yes | T11: =IF(IFERROR(VLOOKUP(T7,'3. Input Sheet '!$H$160:$H$210,1,FALSE),0)>0,"Yes","No") -> Yes | U11: =IF(IFERROR(VLOOKUP(U7,'3. Input Sheet '!$H$160:$H$210,1,FALSE),0)>0,"Yes","No") -> Yes | V11: =IF(IFERROR(VLOOKUP(V7,'3. Input Sheet '!$H$160:$H$210,1,FALSE),0)>0,"Yes","No") -> Yes | W11: =IF(IFERROR(VLOOKUP(W7,'3. Input Sheet '!$H$160:$H$210,1,FALSE),0)>0,"Yes","No") -> Yes | X11: =IF(IFERROR(VLOOKUP(X7,'3. Input Sheet '!$H$160:$H$210,1,FALSE),0)>0,"Yes","No") -> Yes | Y11: =IF(IFERROR(VLOOKUP(Y7,'3. Input Sheet '!$H$160:$H$210,1,FALSE),0)>0,"Yes","No") -> Yes | Z11: =IF(IFERROR(VLOOKUP(Z7,'3. Input Sheet '!$H$160:$H$210,1,FALSE),0)>0,"Yes","No") -> Yes | AA11: =IF(IFERROR(VLOOKUP(AA7,'3. Input Sheet '!$H$160:$H$210,1,FALSE),0)>0,"Yes","No") -> Yes | AB11: =IF(IFERROR(VLOOKUP(AB7,'3. Input Sheet '!$H$160:$H$210,1,FALSE),0)>0,"Yes","No") -> Yes | AC11: =IF(IFERROR(VLOOKUP(AC7,'3. Input Sheet '!$H$160:$H$210,1,FALSE),0)>0,"Yes","No") -> Yes | AD11: =IF(IFERROR(VLOOKUP(AD7,'3. Input Sheet '!$H$160:$H$210,1,FALSE),0)>0,"Yes","No") -> Yes | AE11: =IF(IFERROR(VLOOKUP(AE7,'3. Input Sheet '!$H$160:$H$210,1,FALSE),0)>0,"Yes","No") -> Yes | AF11: =IF(IFERROR(VLOOKUP(AF7,'3. Input Sheet '!$H$160:$H$210,1,FALSE),0)>0,"Yes","No") -> Yes | AG11: =IF(IFERROR(VLOOKUP(AG7,'3. Input Sheet '!$H$160:$H$210,1,FALSE),0)>0,"Yes","No") -> Yes | AH11: =IF(IFERROR(VLOOKUP(AH7,'3. Input Sheet '!$H$160:$H$210,1,FALSE),0)>0,"Yes","No") -> Yes
C12: Refurbishment factor | I12: =IF(I11="No",1,Refurbishment_factor_Base) -> 1 | J12: 1 | K12: 1 | L12: 1 | M12: 1 | N12: 0.5 | O12: 1 | P12: 1 | Q12: 1 | R12: 1 | S12: 0.5 | T12: 0.5 | U12: 0.5 | V12: 0.5 | W12: 0.5 | X12: 0.5 | Y12: 0.5 | Z12: 0.5 | AA12: 0.5 | AB12: 0.5 | AC12: 0.5 | AD12: 0.5 | AE12: 0.5 | AF12: 0.5 | AG12: 0.5 | AH12: 0.5
A14: Balance sheet
B15: Capital
C16: Initial capital cost | E16: £ | F16: =SUM(I16:AH16) -> -461343.75 | I16: =IFERROR(IF(I7<Number_of_years_for_capex_Base,-InitialcapitalcostsBase/Number_of_years_for_capex_Base*I9,""),0) -> -150000 | J16: -153750 | K16: -157593.75
C17: ='[1]Input Sheet'!$C$14 -> Professional fees | E17: £ | F17: =SUM(I17:AH17) -> 0 | I17: =IFERROR(IF(I7<Number_of_years_for_capex_Base,-Professional_fees_Base/Number_of_years_for_capex_Base*I9,""),0) -> 0 | J17: 0 | K17: 0
C18: ='[1]Input Sheet'!$C$15 -> VAT | E18: £ | F18: 0 | I18: =IFERROR(IF(I7<Number_of_years_for_capex_Base,-VAT_Base/Number_of_years_for_capex_Base*I9,""),0) -> 0 | J18: 0 | K18: 0
C19: ='[1]Input Sheet'!$C$16 -> Other fees/duties | E19: £ | F19: 0 | I19: =IFERROR(IF(I9<Number_of_years_for_capex_Base,-Other_fees_duties_Base/Number_of_years_for_capex_Base*I11,""),0) -> 0 | J19: 0 | K19: 0 | L19: 0 | M19: 0 | N19: 0 | O19: 0 | P19: 0 | Q19: 0 | R19: 0 | S19: 0 | T19: 0 | U19: 0 | V19: 0 | W19: 0 | X19: 0 | Y19: 0 | Z19: 0 | AA19: 0 | AB19: 0 | AC19: 0 | AD19: 0 | AE19: 0 | AF19: 0 | AG19: 0 | AH19: 0
C20: ='[1]Input Sheet'!$C$17 -> Contingency | E20: £ | F20: 0 | I20: =IFERROR(IF(I10<Number_of_years_for_capex_Base,-Contingency_Base/Number_of_years_for_capex_Base*I12,""),0) -> 0 | J20: 0 | K20: 0 | L20: 0 | M20: 0 | N20: 0 | O20: 0 | P20: 0 | Q20: 0 | R20: 0 | S20: 0 | T20: 0 | U20: 0 | V20: 0 | W20: 0 | X20: 0 | Y20: 0 | Z20: 0 | AA20: 0 | AB20: 0 | AC20: 0 | AD20: 0 | AE20: 0 | AF20: 0 | AG20: 0 | AH20: 0
C21: Refurbishment | E21: £ | F21: -602873.1893 | I21: =IFERROR(IF(AND(I11="Yes",I7>1),-Refurbishment_costs_sq_ft_Base*Totalarea_sqft_Base*I9,0),0) -> 0 | J21: 0 | K21: 0 | L21: 0 | M21: 0 | N21: -282852.0532 | O21: 0 | P21: 0 | Q21: 0 | R21: 0 | S21: -320021.136 | T21: 0 | U21: 0 | V21: 0 | W21: 0 | X21: 0 | Y21: 0 | Z21: 0 | AA21: 0 | AB21: 0 | AC21: 0 | AD21: 0 | AE21: 0 | AF21: 0 | AG21: 0 | AH21: 0
A23: Total capital | E23: £ | F23: =SUM(I23:AH23) -> -1064216.939 | I23: =SUM(I16:I21) -> -150000 | J23: -153750 | K23: -157593.75 | L23: 0 | M23: 0 | N23: -282852.0532 | O23: 0 | P23: 0 | Q23: 0 | R23: 0 | S23: -320021.136 | T23: 0 | U23: 0 | V23: 0 | W23: 0 | X23: 0 | Y23: 0 | Z23: 0 | AA23: 0 | AB23: 0 | AC23: 0 | AD23: 0 | AE23: 0 | AF23: 0 | AG23: 0 | AH23: 0
A25: Cash Flow Statement
A26: Income Statement
B27: Revenue
C28: ='[1]Input Sheet'!$B$28 -> Membership income | E28: £ | F28: =SUM(I28:AH28) -> 586015.6344 | I28: =IFERROR(IF(I7>Year_to_commence_operations_Base,(VLOOKUP(I7,'3. Input Sheet '!$C$31:$H$80,6,FALSE)*I9*Membership_rate_per_annum_Base)*I12,""),0) ->  | J28: =IFERROR(IF(J7>Year_to_commence_operations_Base,(VLOOKUP(J7,'3. Input Sheet '!$C$31:$H$80,6,FALSE)*J9*Membership_rate_per_annum_Base)*J12,""),0) ->  | K28: =IFERROR(IF(K7>Year_to_commence_operations_Base,(VLOOKUP(K7,'3. Input Sheet '!$C$31:$H$80,6,FALSE)*K9*Membership_rate_per_annum_Base)*K12,""),0) -> 63037.5 | L28: =IFERROR(IF(L7>Year_to_commence_operations_Base,(VLOOKUP(L7,'3. Input Sheet '!$C$31:$H$80,6,FALSE)*L9*Membership_rate_per_annum_Base)*L12,""),0) -> 96920.15625 | M28: =IFERROR(IF(M7>Year_to_commence_operations_Base,(VLOOKUP(M7,'3. Input Sheet '!$C$31:$H$80,6,FALSE)*M9*Membership_rate_per_annum_Base)*M12,""),0) -> 132457.5469 | N28: =IFERROR(IF(N7>Year_to_commence_operations_Base,(VLOOKUP(N7,'3. Input Sheet '!$C$31:$H$80,6,FALSE)*N9*Membership_rate_per_annum_Base)*N12,""),0) -> 84855.61597 | O28: =IFERROR(IF(O7>Year_to_commence_operations_Base,(VLOOKUP(O7,'3. Input Sheet '!$C$31:$H$80,6,FALSE)*O9*Membership_rate_per_annum_Base)*O12,""),0) -> 208744.8153 | P28: =IFERROR(IF(P7>Year_to_commence_operations_Base,(VLOOKUP(P7,'3. Input Sheet '!$C$31:$H$80,6,FALSE)*P9*Membership_rate_per_annum_Base)*P12,""),0) -> 0 | Q28: =IFERROR(IF(Q7>Year_to_commence_operations_Base,(VLOOKUP(Q7,'3. Input Sheet '!$C$31:$H$80,6,FALSE)*Q9*Membership_rate_per_annum_Base)*Q12,""),0) -> 0 | R28: =IFERROR(IF(R7>Year_to_commence_operations_Base,(VLOOKUP(R7,'3. Input Sheet '!$C$31:$H$80,6,FALSE)*R9*Membership_rate_per_annum_Base)*R12,""),0) -> 0 | S28: =IFERROR(IF(S7>Year_to_commence_operations_Base,(VLOOKUP(S7,'3. Input Sheet '!$C$31:$H$80,6,FALSE)*S9*Membership_rate_per_annum_Base)*S12,""),0) -> 0 | T28: =IFERROR(IF(T7>Year_to_commence_operations_Base,(VLOOKUP(T7,'3. Input Sheet '!$C$31:$H$80,6,FALSE)*T9*Membership_rate_per_annum_Base)*T12,""),0) -> 0 | U28: =IFERROR(IF(U7>Year_to_commence_operations_Base,(VLOOKUP(U7,'3. Input Sheet '!$C$31:$H$80,6,FALSE)*U9*Membership_rate_per_annum_Base)*U12,""),0) -> 0 | V28: =IFERROR(IF(V7>Year_to_commence_operations_Base,(VLOOKUP(V7,'3. Input Sheet '!$C$31:$H$80,6,FALSE)*V9*Membership_rate_per_annum_Base)*V12,""),0) -> 0 | W28: =IFERROR(IF(W7>Year_to_commence_operations_Base,(VLOOKUP(W7,'3. Input Sheet '!$C$31:$H$80,6,FALSE)*W9*Membership_rate_per_annum_Base)*W12,""),0) -> 0 | X28: =IFERROR(IF(X7>Year_to_commence_operations_Base,(VLOOKUP(X7,'3. Input Sheet '!$C$31:$H$80,6,FALSE)*X9*Membership_rate_per_annum_Base)*X12,""),0) -> 0 | Y28: =IFERROR(IF(Y7>Year_to_commence_operations_Base,(VLOOKUP(Y7,'3. Input Sheet '!$C$31:$H$80,6,FALSE)*Y9*Membership_rate_per_annum_Base)*Y12,""),0) -> 0 | Z28: =IFERROR(IF(Z7>Year_to_commence_operations_Base,(VLOOKUP(Z7,'3. Input Sheet '!$C$31:$H$80,6,FALSE)*Z9*Membership_rate_per_annum_Base)*Z12,""),0) -> 0 | AA28: =IFERROR(IF(AA7>Year_to_commence_operations_Base,(VLOOKUP(AA7,'3. Input Sheet '!$C$31:$H$80,6,FALSE)*AA9*Membership_rate_per_annum_Base)*AA12,""),0) -> 0 | AB28: =IFERROR(IF(AB7>Year_to_commence_operations_Base,(VLOOKUP(AB7,'3. Input Sheet '!$C$31:$H$80,6,FALSE)*AB9*Membership_rate_per_annum_Base)*AB12,""),0) -> 0 | AC28: =IFERROR(IF(AC7>Year_to_commence_operations_Base,(VLOOKUP(AC7,'3. Input Sheet '!$C$31:$H$80,6,FALSE)*AC9*Membership_rate_per_annum_Base)*AC12,""),0) -> 0 | AD28: =IFERROR(IF(AD7>Year_to_commence_operations_Base,(VLOOKUP(AD7,'3. Input Sheet '!$C$31:$H$80,6,FALSE)*AD9*Membership_rate_per_annum_Base)*AD12,""),0) -> 0 | AE28: =IFERROR(IF(AE7>Year_to_commence_operations_Base,(VLOOKUP(AE7,'3. Input Sheet '!$C$31:$H$80,6,FALSE)*AE9*Membership_rate_per_annum_Base)*AE12,""),0) -> 0 | AF28: =IFERROR(IF(AF7>Year_to_commence_operations_Base,(VLOOKUP(AF7,'3. Input Sheet '!$C$31:$H$80,6,FALSE)*AF9*Membership_rate_per_annum_Base)*AF12,""),0) -> 0 | AG28: =IFERROR(IF(AG7>Year_to_commence_operations_Base,(VLOOKUP(AG7,'3. Input Sheet '!$C$31:$H$80,6,FALSE)*AG9*Membership_rate_per_annum_Base)*AG12,""),0) -> 0 | AH28: =IFERROR(IF(AH7>Year_to_commence_operations_Base,(VLOOKUP(AH7,'3. Input Sheet '!$C$31:$H$80,6,FALSE)*AH9*Membership_rate_per_annum_Base)*AH12,""),0) -> 0
C29: ='[1]Input Sheet'!$C$84 -> Accommodation income | E29: £ | F29: 499646.8764 | I29: =IFERROR(IF(I7>Year_to_commence_operations_Base,AccommodationNumber_of_rooms_Base*AccommodationPrice_per_night_Base*AccommodationNights_in_operation_Base*AccommodationOccupancy_Base*I9*I12,""),0) ->  | K29: 56733.75 | L29: 58152.09375 | M29: 59605.89609 | N29: 30548.02175 | O29: 62623.44458 | P29: 64189.0307 | Q29: 65793.75647 | R29: 67438.60038 | S29: 34562.28269 | T29: 0 | U29: 0 | V29: 0 | W29: 0 | X29: 0 | Y29: 0 | Z29: 0 | AA29: 0 | AB29: 0 | AC29: 0 | AD29: 0 | AE29: 0 | AF29: 0 | AG29: 0 | AH29: 0
C30: ='[1]Input Sheet'!$C$90 -> Rental space income | E30: £ | F30: 23131.79983 | I30: =IFERROR(IF(I7>Year_to_commence_operations_Base,RentalSpaceIncomeRent_per_sq_ft_Base*RentalSpaceIncomeRental_area__sq_ft_Base*I9*I12,""),0) ->  | K30: 2626.5625 | L30: 2692.226562 | M30: 2759.532227 | N30: 1414.260266 | O30: 2899.233546 | P30: 2971.714384 | Q30: 3046.007244 | R30: 3122.157425 | S30: 1600.10568 | T30: 0 | U30: 0 | V30: 0 | W30: 0 | X30: 0 | Y30: 0 | Z30: 0 | AA30: 0 | AB30: 0 | AC30: 0 | AD30: 0 | AE30: 0 | AF30: 0 | AG30: 0 | AH30: 0
C31: ='[1]Input Sheet'!$C$95 -> Room & equipment hire income | E31: £ | F31: 0 | I31: =IFERROR(IF(I7>Year_to_commence_operations_Base,Room_EquipmentHire_Number_of_rooms_Base*Room_EquipmentHireBlended_rate_day_Base*Room_EquipmentHireDays_in_operation_Base*Room_EquipmentHireOccupancy_Base*I9*I12,""),0) ->  | K31: 0 | L31: 0 | M31: 0 | N31: 0 | O31: 0 | P31: 0 | Q31: 0 | R31: 0 | S31: 0 | T31: 0 | U31: 0 | V31: 0 | W31: 0 | X31: 0 | Y31: 0 | Z31: 0 | AA31: 0 | AB31: 0 | AC31: 0 | AD31: 0 | AE31: 0 | AF31: 0 | AG31: 0 | AH31: 0
C32: ='[1]Input Sheet'!$C$101 -> Restaurant and private dining income | E32: £ | F32: 0 | I32: =IFERROR(IF(I7>Year_to_commence_operations_Base,RestaurantCovers_per_day_Base*RestaurantPrice_cover_Base*RestaurantDays_in_operation_Base*I9*I12,""),0) ->  | K32: 0 | L32: 0 | M32: 0 | N32: 0 | O32: 0 | P32: 0 | Q32: 0 | R32: 0 | S32: 0 | T32: 0 | U32: 0 | V32: 0 | W32: 0 | X32: 0 | Y32: 0 | Z32: 0 | AA32: 0 | AB32: 0 | AC32: 0 | AD32: 0 | AE32: 0 | AF32: 0 | AG32: 0 | AH32: 0
C33: ='[1]Input Sheet'!$C$107 -> Events income | E33: £ | F33: 0 | I33: =IFERROR(IF(I7>Year_to_commence_operations_Base,EventsincomeNumber_of_events_per_annum_Base*EventsincomeAverage_takings_event_Base*Events_Base*I9*I12,""),0) ->  | K33: 0 | L33: 0 | M33: 0 | N33: 0 | O33: 0 | P33: 0 | Q33: 0 | R33: 0 | S33: 0 | T33: 0 | U33: 0 | V33: 0 | W33: 0 | X33: 0 | Y33: 0 | Z33: 0 | AA33: 0 | AB33: 0 | AC33: 0 | AD33: 0 | AE33: 0 | AF33: 0 | AG33: 0 | AH33: 0
C34: ='[1]Input Sheet'!$C$112 -> Income from provision of services | E34: £ | F34: 0 | I34: =IFERROR(IF(I7>Year_to_commence_operations_Base,IncomefromProvisionServicesAverage_service_price_Base*IncomefromProvisionServicesTarget_service_volume_per_annum_Base*I9*I12,""),0) ->  | K34: 0 | L34: 0 | M34: 0 | N34: 0 | O34: 0 | P34: 0 | Q34: 0 | R34: 0 | S34: 0 | T34: 0 | U34: 0 | V34: 0 | W34: 0 | X34: 0 | Y34: 0 | Z34: 0 | AA34: 0 | AB34: 0 | AC34: 0 | AD34: 0 | AE34: 0 | AF34: 0 | AG34: 0 | AH34: 0
C35: ='[1]Input Sheet'!$C$117 -> Sale of goods income | E35: £ | F35: 0 | I35: =IFERROR(IF(I7>Year_to_commence_operations_Base,GoodsIncomeAverage_sales_price_Base*GoodsIncomeTarget_sales_volume_per_annum_Base*I9*I12,""),0) ->  | K35: 0 | L35: 0 | M35: 0 | N35: 0 | O35: 0 | P35: 0 | Q35: 0 | R35: 0 | S35: 0 | T35: 0 | U35: 0 | V35: 0 | W35: 0 | X35: 0 | Y35: 0 | Z35: 0 | AA35: 0 | AB35: 0 | AC35: 0 | AD35: 0 | AE35: 0 | AF35: 0 | AG35: 0 | AH35: 0
B37: Total Revenue | E37: £ | F37: 1108794.311 | I37: =SUM(I28:I35) -> 0 | J37: =SUM(J28:J35) -> 0 | K37: 122397.8125 | L37: 157764.4766 | M37: 194822.9752 | N37: 116817.898 | O37: 274267.4934 | P37: 67160.74508 | Q37: 68839.76371 | R37: 70560.7578 | S37: 36162.38837 | T37: 0 | U37: 0 | V37: 0 | W37: 0 | X37: 0 | Y37: 0 | Z37: 0 | AA37: 0 | AB37: 0 | AC37: 0 | AD37: 0 | AE37: 0 | AF37: 0 | AG37: 0 | AH37: 0
B39: Expenditure
C40: ='[1]Input Sheet'!$D$124 -> Staff costs | E40: £ | F40: =SUM(I40:AH40) -> -92527.19934 | I40: =IFERROR(IF(I7>Year_to_commence_operations_Base,-Staff_costs_Base*I9*I12,""),0) ->  | K40: -10506.25 | L40: -10768.90625 | M40: -11038.12891 | N40: -5657.041064 | O40: -11596.93418 | P40: -11886.85754 | Q40: -12184.02898 | R40: -12488.6297 | S40: -6400.422721 | T40: 0 | U40: 0 | V40: 0 | W40: 0 | X40: 0 | Y40: 0 | Z40: 0 | AA40: 0 | AB40: 0 | AC40: 0 | AD40: 0 | AE40: 0 | AF40: 0 | AG40: 0 | AH40: 0
C41: ='[1]Input Sheet'!$D$126 -> Cost of sales | E41: £ | F41: -185054.3987 | I41: =IFERROR(IF(I7>Year_to_commence_operations_Base,-Cost_of_sales_Base*I9*I12,""),0) ->  | K41: -21012.5 | L41: -21537.8125 | M41: -22076.25781 | N41: -11314.08213 | O41: -23193.86836 | P41: -23773.71507 | Q41: -24368.05795 | R41: -24977.2594 | S41: -12800.84544 | T41: 0 | U41: 0 | V41: 0 | W41: 0 | X41: 0 | Y41: 0 | Z41: 0 | AA41: 0 | AB41: 0 | AC41: 0 | AD41: 0 | AE41: 0 | AF41: 0 | AG41: 0 | AH41: 0
C42: ='[1]Input Sheet'!$D$128 -> Marketing costs per annum | E42: £ | F42: 0 | I42: =IFERROR(IF(I7>Year_to_commence_operations_Base,-Marketing_costs_per_annum_Base*I9*I12,""),0) ->  | K42: 0 | L42: 0 | M42: 0 | N42: 0 | O42: 0 | P42: 0 | Q42: 0 | R42: 0 | S42: 0 | T42: 0 | U42: 0 | V42: 0 | W42: 0 | X42: 0 | Y42: 0 | Z42: 0 | AA42: 0 | AB42: 0 | AC42: 0 | AD42: 0 | AE42: 0 | AF42: 0 | AG42: 0 | AH42: 0
C43: ='[1]Input Sheet'!$D$129 -> Other opex | E43: £ | F43: 0 | I43: =IFERROR(IF(I7>Year_to_commence_operations_Base,-Other_opex_Base*I9*I12,""),0) ->  | K43: 0 | L43: 0 | M43: 0 | N43: 0 | O43: 0 | P43: 0 | Q43: 0 | R43: 0 | S43: 0 | T43: 0 | U43: 0 | V43: 0 | W43: 0 | X43: 0 | Y43: 0 | Z43: 0 | AA43: 0 | AB43: 0 | AC43: 0 | AD43: 0 | AE43: 0 | AF43: 0 | AG43: 0 | AH43: 0
C44: ='[1]Input Sheet'!$D$131 -> Estates costs | E44: £ | F44: 0 | I44: =IFERROR(IF(I7>Year_to_commence_operations_Base,-EstatesArea_sq_ft_Base*EstatesCost_sq_ft_Base*I9*I12,""),0) ->  | K44: 0 | L44: 0 | M44: 0 | N44: 0 | O44: 0 | P44: 0 | Q44: 0 | R44: 0 | S44: 0 | T44: 0 | U44: 0 | V44: 0 | W44: 0 | X44: 0 | Y44: 0 | Z44: 0 | AA44: 0 | AB44: 0 | AC44: 0 | AD44: 0 | AE44: 0 | AF44: 0 | AG44: 0 | AH44: 0
C45: ='[1]Input Sheet'!$D$135 -> Facilities Management costs | E45: £ | F45: 0 | I45: =IFERROR(IF(I7>Year_to_commence_operations_Base,-FMArea_sq_ft_Base*FMCost_sq_ft_Base*I9*I12,""),0) ->  | K45: 0 | L45: 0 | M45: 0 | N45: 0 | O45: 0 | P45: 0 | Q45: 0 | R45: 0 | S45: 0 | T45: 0 | U45: 0 | V45: 0 | W45: 0 | X45: 0 | Y45: 0 | Z45: 0 | AA45: 0 | AB45: 0 | AC45: 0 | AD45: 0 | AE45: 0 | AF45: 0 | AG45: 0 | AH45: 0
C46: ='[1]Input Sheet'!$D$139 -> Equipment cost | E46: £ | F46: 0 | I46: =IFERROR(IF(I7>Year_to_commence_operations_Base,-Equipment_cost_upper*I9*I12,""),0) ->  | K46: 0 | L46: 0 | M46: 0 | N46: 0 | O46: 0 | P46: 0 | Q46: 0 | R46: 0 | S46: 0 | T46: 0 | U46: 0 | V46: 0 | W46: 0 | X46: 0 | Y46: 0 | Z46: 0 | AA46: 0 | AB46: 0 | AC46: 0 | AD46: 0 | AE46: 0 | AF46: 0 | AG46: 0 | AH46: 0
C47: ='[1]Input Sheet'!$D$140 -> Promotions and events | E47: £ | F47: =SUM(I47:AH47) -> 0 | I47: =IFERROR(IF(I7>Year_to_commence_operations_Base,-Promotions_and_events_Base*I9*I12,""),0) ->  | K47: 0 | L47: 0 | M47: 0 | N47: 0 | O47: 0 | P47: 0 | Q47: 0 | R47: 0 | S47: 0 | T47: 0 | U47: 0 | V47: 0 | W47: 0 | X47: 0 | Y47: 0 | Z47: 0 | AA47: 0 | AB47: 0 | AC47: 0 | AD47: 0 | AE47: 0 | AF47: 0 | AG47: 0 | AH47: 0
C48: ='[1]Input Sheet'!$D$141 -> Other attributable central costs | E48: £ | F48: =SUM(I48:AH48) -> 0 | I48: =IFERROR(IF(I7>Year_to_commence_operations_Base,-Other_attributable_central_costs_Base*I9*I12,""),0) ->  | K48: 0 | L48: 0 | M48: 0 | N48: 0 | O48: 0 | P48: 0 | Q48: 0 | R48: 0 | S48: 0 | T48: 0 | U48: 0 | V48: 0 | W48: 0 | X48: 0 | Y48: 0 | Z48: 0 | AA48: 0 | AB48: 0 | AC48: 0 | AD48: 0 | AE48: 0 | AF48: 0 | AG48: 0 | AH48: 0
C49: ='[1]Input Sheet'!$D$142 -> Lease costs | E49: £ | F49: 0 | I49: =IFERROR(IF(I7>Year_to_commence_operations_Base,-Lease_costs_Base*I9*I12,""),0) ->  | K49: 0 | L49: 0 | M49: 0 | N49: 0 | O49: 0 | P49: 0 | Q49: 0 | R49: 0 | S49: 0 | T49: 0 | U49: 0 | V49: 0 | W49: 0 | X49: 0 | Y49: 0 | Z49: 0 | AA49: 0 | AB49: 0 | AC49: 0 | AD49: 0 | AE49: 0 | AF49: 0 | AG49: 0 | AH49: 0
C50: ='[1]Input Sheet'!$D$143 -> Rates | E50: £ | F50: 0 | I50: =IFERROR(IF(I7>Year_to_commence_operations_Base,-Rates_Base*I9*I12,""),0) ->  | K50: 0 | L50: 0 | M50: 0 | N50: 0 | O50: 0 | P50: 0 | Q50: 0 | R50: 0 | S50: 0 | T50: 0 | U50: 0 | V50: 0 | W50: 0 | X50: 0 | Y50: 0 | Z50: 0 | AA50: 0 | AB50: 0 | AC50: 0 | AD50: 0 | AE50: 0 | AF50: 0 | AG50: 0 | AH50: 0
C51: ='[1]Input Sheet'!$D$144 -> Other costs | E51: £ | F51: 0 | I51: =IFERROR(IF(I7>Year_to_commence_operations_Base,-Other_costs_Base*I9*I12,""),0) ->  | K51: 0 | L51: 0 | M51: 0 | N51: 0 | O51: 0 | P51: 0 | Q51: 0 | R51: 0 | S51: 0 | T51: 0 | U51: 0 | V51: 0 | W51: 0 | X51: 0 | Y51: 0 | Z51: 0 | AA51: 0 | AB51: 0 | AC51: 0 | AD51: 0 | AE51: 0 | AF51: 0 | AG51: 0 | AH51: 0
B53: Total Expenditure | E53: £ | F53: =SUM(I53:AH53) -> -277581.598 | I53: =SUM(I40:I51) -> 0 | J53: =SUM(J40:J51) -> 0 | K53: -31518.75 | L53: -32306.71875 | M53: -33114.38672 | N53: -16971.12319 | O53: -34790.80255 | P53: -35660.57261 | Q53: -36552.08693 | R53: -37465.8891 | S53: -19201.26816 | T53: 0 | U53: 0 | V53: 0 | W53: 0 | X53: 0 | Y53: 0 | Z53: 0 | AA53: 0 | AB53: 0 | AC53: 0 | AD53: 0 | AE53: 0 | AF53: 0 | AG53: 0 | AH53: 0
A55: Terminal value | E55: £ | F55: =SUM(I55:AH55) -> 640042.2721 | I55: =IF(I7=Number_of_years__max,Terminal_value_Base*I9,0) -> 0 | J55: 0 | K55: 0 | L55: 0 | M55: 0 | N55: 0 | O55: 0 | P55: 0 | Q55: 0 | R55: 0 | S55: 640042.2721 | T55: 0 | U55: 0 | V55: 0 | W55: 0 | X55: 0 | Y55: 0 | Z55: 0 | AA55: 0 | AB55: 0 | AC55: 0 | AD55: 0 | AE55: 0 | AF55: 0 | AG55: 0 | AH55: 0
A57: Free Cash Flow | E57: £ | F57: =SUM(I57:AH57) -> 407038.0454 | I57: =I37+I53+I23+I55 -> -150000 | J57: =J37+J53+J23+J55 -> -153750 | K57: =IF(K37+K53+K23+K55=0,"",K37+K53+K23+K55) -> -66714.6875 | L57: =IF(L37+L53+L23+L55=0,"",L37+L53+L23+L55) -> 125457.7578 | M57: 161708.5885 | N57: -183005.2784 | O57: 239476.6909 | P57: 31500.17247 | Q57: 32287.67678 | R57: 33094.8687 | S57: 336982.2563
A59: Operating cash | E59: £ | F59: =SUM(I59:AH59) -> 831212.7126 | I59: =I37+I53 -> 0 | J59: =J37+J53 -> 0 | K59: =IF(K37+K53=0,"",K37+K53) -> 90879.0625 | L59: =IF(L37+L53=0,"",L37+L53) -> 125457.7578 | M59: 161708.5885 | N59: 99846.77479 | O59: 239476.6909 | P59: 31500.17247 | Q59: 32287.67678 | R59: 33094.8687 | S59: 16961.12021
A61: Cumulative Cash Flow in year (excluding interest) | I61: =IFERROR(H61+I57,"") -> -150000 | J61: -303750 | K61: -370464.6875 | L61: -245006.9297 | M61: -83298.34121 | N61: -266303.6196 | O61: -26826.92879 | P61: 4673.243687 | Q61: 36960.92047 | R61: 70055.78917 | S61: 407038.0454 | T61: =IFERROR(S61+T57,"") ->  | U61: =IFERROR(T61+U57,"") -> 
A63: Profit Margin | I63: =IFERROR(-(I37+I53)/I53,0) -> 0 | J63: =IFERROR(-(J37+J53)/J53,0) -> 0 | K63: 2.883333333 | L63: 3.883333333 | M63: 4.883333333 | N63: 5.883333333 | O63: 6.883333333 | P63: 0.8833333333 | Q63: 0.8833333333 | R63: 0.8833333333 | S63: 0.8833333333 | T63: 0 | U63: 0 | V63: 0 | W63: 0 | X63: 0 | Y63: 0 | Z63: 0 | AA63: 0 | AB63: 0 | AC63: 0 | AD63: 0 | AE63: 0 | AF63: 0 | AG63: 0 | AH63: 0
B67: NPV | C67: =NPV(OtherFactorsDiscount_factor_RPI_2.5_Base,I57:AH57) -> 136149.3626 | E67: £
B68: IRR | C68: =IRR(I57:AH57) -> 0.1296054663 | E68: %
B69: MIRR | C69: =MIRR(I57:AH57,OtherFactorsDiscount_factor_RPI_2.5_Base,OtherFactorsDiscount_factor_RPI_2.5_Base) -> 0.09313377196 | E69: %
B71: Payback | C71: =MAX(I71:AH71) -> 6.85164387 | E71: Years | F71: =CONCATENATE(INT(ROUND(C71*12,0)/12)," years ", ROUND(C71*12,0)-(INT(ROUND(C71*12,0)/12)*12)," months") -> 6 years 10 months | J71: =IFERROR(IF(AND(K61>0,J61<0),K7-(K61/K57),0),0) -> 0 | K71: =IFERROR(IF(AND(L61>0,K61<0),L7-(L61/L57),0),0) -> 0 | L71: 0 | M71: 0 | N71: 0 | O71: 6.85164387 | P71: 0 | Q71: 0 | R71: 0 | S71: 0 | T71: 0 | U71: 0 | V71: 0 | W71: 0 | X71: 0 | Y71: 0 | Z71: 0 | AA71: 0 | AB71: 0 | AC71: 0 | AD71: 0 | AE71: 0 | AF71: 0 | AG71: 0 | AH71: 0
B73: Yield on cash | C73: =-(AVERAGE(I59:AH59))/(Total_capital_Base) -> 0.07100506416
B77: ='3. Input Sheet '!I5 -> Upper Case
A78: Year | D78: Constant | E78: Units | F78: Total | G78: Sparkline | I78: ='2. Model Assumptions'!D8 -> 2016 | J78: =IFERROR(IF((J79+$I$6)<($I$6+Number_of_years__max+1),(J79+$I$6),""),"") -> 2017 | K78: 2018 | L78: 2019 | M78: 2020 | N78: 2021 | O78: 2022 | P78: 2023 | Q78: 2024 | R78: 2025 | S78: 2026
I79: 0 | J79: =IFERROR(IF((I79+1)<Number_of_years__max+1,(I79+1),""),"") -> 1 | K79: 2 | L79: 3 | M79: 4 | N79: 5 | O79: 6 | P79: 7 | Q79: 8 | R79: 9 | S79: 10
B81: Inflation Index | D81: =Inflation -> 0.025 | E81: % | I81: =(1+Inflation)^I79 -> 1 | J81: 1.025 | K81: 1.050625 | L81: 1.076890625 | M81: 1.103812891 | N81: 1.131408213 | O81: 1.159693418 | P81: 1.188685754 | Q81: 1.218402898 | R81: 1.24886297 | S81: 1.280084544
C83: Refurbishment | I83: =IF(IFERROR(VLOOKUP(I79,'3. Input Sheet '!$I$160:$I$210,1,FALSE),0)>0,"Yes","No") -> No | J83: =IF(IFERROR(VLOOKUP(J79,'3. Input Sheet '!$I$160:$I$210,1,FALSE),0)>0,"Yes","No") -> No | K83: =IF(IFERROR(VLOOKUP(K79,'3. Input Sheet '!$I$160:$I$210,1,FALSE),0)>0,"Yes","No") -> No | L83: =IF(IFERROR(VLOOKUP(L79,'3. Input Sheet '!$I$160:$I$210,1,FALSE),0)>0,"Yes","No") -> No | M83: =IF(IFERROR(VLOOKUP(M79,'3. Input Sheet '!$I$160:$I$210,1,FALSE),0)>0,"Yes","No") -> No | N83: =IF(IFERROR(VLOOKUP(N79,'3. Input Sheet '!$I$160:$I$210,1,FALSE),0)>0,"Yes","No") -> No | O83: =IF(IFERROR(VLOOKUP(O79,'3. Input Sheet '!$I$160:$I$210,1,FALSE),0)>0,"Yes","No") -> Yes | P83: =IF(IFERROR(VLOOKUP(P79,'3. Input Sheet '!$I$160:$I$210,1,FALSE),0)>0,"Yes","No") -> No | Q83: =IF(IFERROR(VLOOKUP(Q79,'3. Input Sheet '!$I$160:$I$210,1,FALSE),0)>0,"Yes","No") -> No | R83: =IF(IFERROR(VLOOKUP(R79,'3. Input Sheet '!$I$160:$I$210,1,FALSE),0)>0,"Yes","No") -> No | S83: =IF(IFERROR(VLOOKUP(S79,'3. Input Sheet '!$I$160:$I$210,1,FALSE),0)>0,"Yes","No") -> No | T83: =IF(IFERROR(VLOOKUP(T79,'3. Input Sheet '!$I$160:$I$210,1,FALSE),0)>0,"Yes","No") -> Yes | U83: =IF(IFERROR(VLOOKUP(U79,'3. Input Sheet '!$I$160:$I$210,1,FALSE),0)>0,"Yes","No") -> Yes | V83: =IF(IFERROR(VLOOKUP(V79,'3. Input Sheet '!$I$160:$I$210,1,FALSE),0)>0,"Yes","No") -> Yes | W83: =IF(IFERROR(VLOOKUP(W79,'3. Input Sheet '!$I$160:$I$210,1,FALSE),0)>0,"Yes","No") -> Yes | X83: =IF(IFERROR(VLOOKUP(X79,'3. Input Sheet '!$I$160:$I$210,1,FALSE),0)>0,"Yes","No") -> Yes | Y83: =IF(IFERROR(VLOOKUP(Y79,'3. Input Sheet '!$I$160:$I$210,1,FALSE),0)>0,"Yes","No") -> Yes | Z83: =IF(IFERROR(VLOOKUP(Z79,'3. Input Sheet '!$I$160:$I$210,1,FALSE),0)>0,"Yes","No") -> Yes | AA83: =IF(IFERROR(VLOOKUP(AA79,'3. Input Sheet '!$I$160:$I$210,1,FALSE),0)>0,"Yes","No") -> Yes | AB83: =IF(IFERROR(VLOOKUP(AB79,'3. Input Sheet '!$I$160:$I$210,1,FALSE),0)>0,"Yes","No") -> Yes | AC83: =IF(IFERROR(VLOOKUP(AC79,'3. Input Sheet '!$I$160:$I$210,1,FALSE),0)>0,"Yes","No") -> Yes | AD83: =IF(IFERROR(VLOOKUP(AD79,'3. Input Sheet '!$I$160:$I$210,1,FALSE),0)>0,"Yes","No") -> Yes | AE83: =IF(IFERROR(VLOOKUP(AE79,'3. Input Sheet '!$I$160:$I$210,1,FALSE),0)>0,"Yes","No") -> Yes | AF83: =IF(IFERROR(VLOOKUP(AF79,'3. Input Sheet '!$I$160:$I$210,1,FALSE),0)>0,"Yes","No") -> Yes | AG83: =IF(IFERROR(VLOOKUP(AG79,'3. Input Sheet '!$I$160:$I$210,1,FALSE),0)>0,"Yes","No") -> Yes | AH83: =IF(IFERROR(VLOOKUP(AH79,'3. Input Sheet '!$I$160:$I$210,1,FALSE),0)>0,"Yes","No") -> Yes
C84: Refurbishment factor | I84: =IF(I83="No",1,Refurbishment_factor_upper) -> 1 | J84: 1 | K84: 1 | L84: 1 | M84: 1 | N84: 1 | O84: 0.5 | P84: 1 | Q84: 1 | R84: 1 | S84: 1 | T84: 0.5 | U84: 0.5 | V84: 0.5 | W84: 0.5 | X84: 0.5 | Y84: 0.5 | Z84: 0.5 | AA84: 0.5 | AB84: 0.5 | AC84: 0.5 | AD84: 0.5 | AE84: 0.5 | AF84: 0.5 | AG84: 0.5 | AH84: 0.5
A86: Balance sheet
B87: Capital
C88: Initial capital cost | E88: £ | F88: =SUM(I88:AH88) -> -410062.5 | I88: =IFERROR(IF(I79<Number_of_years_for_capex_upper,-Initialcapitalcostsupper/Number_of_years_for_capex_upper*I81,""),0) -> -202500 | J88: -207562.5
C89: ='[1]Input Sheet'!$C$14 -> Professional fees | E89: £ | F89: =SUM(I89:AH89) -> 0 | I89: =IFERROR(IF(I79<Number_of_years_for_capex_upper,-Professional_fees_upper/Number_of_years_for_capex_upper*I81,""),0) -> 0 | J89: 0
C90: ='[1]Input Sheet'!$C$15 -> VAT | E90: £ | F90: 0 | I90: =IFERROR(IF(I79<Number_of_years_for_capex_upper,-VAT_upper/Number_of_years_for_capex_upper*I81,""),0) -> 0 | J90: 0
C91: ='[1]Input Sheet'!$C$16 -> Other fees/duties | E91: £ | F91: 0 | I91: =IFERROR(IF(I81<Number_of_years_for_capex_upper,-Other_fees_duties_upper/Number_of_years_for_capex_upper*I83,""),0) -> 0 | J91: 0 | K91: 0 | L91: 0 | M91: 0 | N91: 0 | O91: 0 | P91: 0 | Q91: 0 | R91: 0 | S91: 0 | T91: 0 | U91: 0 | V91: 0 | W91: 0 | X91: 0 | Y91: 0 | Z91: 0 | AA91: 0 | AB91: 0 | AC91: 0 | AD91: 0 | AE91: 0 | AF91: 0 | AG91: 0 | AH91: 0
C92: ='[1]Input Sheet'!$C$17 -> Contingency | E92: £ | F92: 0 | I92: =IFERROR(IF(I82<Number_of_years_for_capex_upper,-Contingency_upper/Number_of_years_for_capex_upper*I84,""),0) -> 0 | J92: 0 | K92: 0 | L92: 0 | M92: 0 | N92: 0 | O92: 0 | P92: 0 | Q92: 0 | R92: 0 | S92: 0 | T92: 0 | U92: 0 | V92: 0 | W92: 0 | X92: 0 | Y92: 0 | Z92: 0 | AA92: 0 | AB92: 0 | AC92: 0 | AD92: 0 | AE92: 0 | AF92: 0 | AG92: 0 | AH92: 0
C93: Refurbishment | E93: £ | F93: -115969.3418 | I93: =IFERROR(IF(AND(I83="Yes",I79>1),-Refurbishment_costs_sq_ft_upper*Totalarea_sqft_upper*I81,0),0) -> 0 | J93: 0 | K93: 0 | L93: 0 | M93: 0 | N93: 0 | O93: -115969.3418 | P93: 0 | Q93: 0 | R93: 0 | S93: 0 | T93: 0 | U93: 0 | V93: 0 | W93: 0 | X93: 0 | Y93: 0 | Z93: 0 | AA93: 0 | AB93: 0 | AC93: 0 | AD93: 0 | AE93: 0 | AF93: 0 | AG93: 0 | AH93: 0
A95: Total capital | E95: £ | F95: =SUM(I95:AH95) -> -526031.8418 | I95: =SUM(I88:I93) -> -202500 | J95: -207562.5 | K95: 0 | L95: 0 | M95: 0 | N95: 0 | O95: -115969.3418 | P95: 0 | Q95: 0 | R95: 0 | S95: 0 | T95: 0 | U95: 0 | V95: 0 | W95: 0 | X95: 0 | Y95: 0 | Z95: 0 | AA95: 0 | AB95: 0 | AC95: 0 | AD95: 0 | AE95: 0 | AF95: 0 | AG95: 0 | AH95: 0
A97: Cash Flow Statement
A98: Income Statement
B99: Revenue
C100: ='[1]Input Sheet'!$B$28 -> Membership income | E100: £ | F100: =SUM(I100:AH100) -> 685463.5997 | I100: =IFERROR(IF(I79>Year_to_commence_operations_upper,(VLOOKUP(I79,'3. Input Sheet '!$C$31:$I$80,7,FALSE)*I81*Membership_rate_per_annum_upper)*I84,""),0) ->  | J100: =IFERROR(IF(J79>Year_to_commence_operations_upper,(VLOOKUP(J79,'3. Input Sheet '!$C$31:$I$80,7,FALSE)*J81*Membership_rate_per_annum_upper)*J84,""),0) ->  | K100: =IFERROR(IF(K79>Year_to_commence_operations_upper,(VLOOKUP(K79,'3. Input Sheet '!$C$31:$I$80,7,FALSE)*K81*Membership_rate_per_annum_upper)*K84,""),0) -> 76275.375 | L100: =IFERROR(IF(L79>Year_to_commence_operations_upper,(VLOOKUP(L79,'3. Input Sheet '!$C$31:$I$80,7,FALSE)*L81*Membership_rate_per_annum_upper)*L84,""),0) -> 117273.3891 | M100: =IFERROR(IF(M79>Year_to_commence_operations_upper,(VLOOKUP(M79,'3. Input Sheet '!$C$31:$I$80,7,FALSE)*M81*Membership_rate_per_annum_upper)*M84,""),0) -> 160273.6317 | N100: =IFERROR(IF(N79>Year_to_commence_operations_upper,(VLOOKUP(N79,'3. Input Sheet '!$C$31:$I$80,7,FALSE)*N81*Membership_rate_per_annum_upper)*N84,""),0) -> 205350.5906 | O100: =IFERROR(IF(O79>Year_to_commence_operations_upper,(VLOOKUP(O79,'3. Input Sheet '!$C$31:$I$80,7,FALSE)*O81*Membership_rate_per_annum_upper)*O84,""),0) -> 126290.6132 | P100: =IFERROR(IF(P79>Year_to_commence_operations_upper,(VLOOKUP(P79,'3. Input Sheet '!$C$31:$I$80,7,FALSE)*P81*Membership_rate_per_annum_upper)*P84,""),0) -> 0 | Q100: =IFERROR(IF(Q79>Year_to_commence_operations_upper,(VLOOKUP(Q79,'3. Input Sheet '!$C$31:$I$80,7,FALSE)*Q81*Membership_rate_per_annum_upper)*Q84,""),0) -> 0 | R100: =IFERROR(IF(R79>Year_to_commence_operations_upper,(VLOOKUP(R79,'3. Input Sheet '!$C$31:$I$80,7,FALSE)*R81*Membership_rate_per_annum_upper)*R84,""),0) -> 0 | S100: =IFERROR(IF(S79>Year_to_commence_operations_upper,(VLOOKUP(S79,'3. Input Sheet '!$C$31:$I$80,7,FALSE)*S81*Membership_rate_per_annum_upper)*S84,""),0) -> 0 | T100: =IFERROR(IF(T79>Year_to_commence_operations_upper,(VLOOKUP(T79,'3. Input Sheet '!$C$31:$I$80,7,FALSE)*T81*Membership_rate_per_annum_upper)*T84,""),0) -> 0 | U100: =IFERROR(IF(U79>Year_to_commence_operations_upper,(VLOOKUP(U79,'3. Input Sheet '!$C$31:$I$80,7,FALSE)*U81*Membership_rate_per_annum_upper)*U84,""),0) -> 0 | V100: =IFERROR(IF(V79>Year_to_commence_operations_upper,(VLOOKUP(V79,'3. Input Sheet '!$C$31:$I$80,7,FALSE)*V81*Membership_rate_per_annum_upper)*V84,""),0) -> 0 | W100: =IFERROR(IF(W79>Year_to_commence_operations_upper,(VLOOKUP(W79,'3. Input Sheet '!$C$31:$I$80,7,FALSE)*W81*Membership_rate_per_annum_upper)*W84,""),0) -> 0 | X100: =IFERROR(IF(X79>Year_to_commence_operations_upper,(VLOOKUP(X79,'3. Input Sheet '!$C$31:$I$80,7,FALSE)*X81*Membership_rate_per_annum_upper)*X84,""),0) -> 0 | Y100: =IFERROR(IF(Y79>Year_to_commence_operations_upper,(VLOOKUP(Y79,'3. Input Sheet '!$C$31:$I$80,7,FALSE)*Y81*Membership_rate_per_annum_upper)*Y84,""),0) -> 0 | Z100: =IFERROR(IF(Z79>Year_to_commence_operations_upper,(VLOOKUP(Z79,'3. Input Sheet '!$C$31:$I$80,7,FALSE)*Z81*Membership_rate_per_annum_upper)*Z84,""),0) -> 0 | AA100: =IFERROR(IF(AA79>Year_to_commence_operations_upper,(VLOOKUP(AA79,'3. Input Sheet '!$C$31:$I$80,7,FALSE)*AA81*Membership_rate_per_annum_upper)*AA84,""),0) -> 0 | AB100: =IFERROR(IF(AB79>Year_to_commence_operations_upper,(VLOOKUP(AB79,'3. Input Sheet '!$C$31:$I$80,7,FALSE)*AB81*Membership_rate_per_annum_upper)*AB84,""),0) -> 0 | AC100: =IFERROR(IF(AC79>Year_to_commence_operations_upper,(VLOOKUP(AC79,'3. Input Sheet '!$C$31:$I$80,7,FALSE)*AC81*Membership_rate_per_annum_upper)*AC84,""),0) -> 0 | AD100: =IFERROR(IF(AD79>Year_to_commence_operations_upper,(VLOOKUP(AD79,'3. Input Sheet '!$C$31:$I$80,7,FALSE)*AD81*Membership_rate_per_annum_upper)*AD84,""),0) -> 0 | AE100: =IFERROR(IF(AE79>Year_to_commence_operations_upper,(VLOOKUP(AE79,'3. Input Sheet '!$C$31:$I$80,7,FALSE)*AE81*Membership_rate_per_annum_upper)*AE84,""),0) -> 0 | AF100: =IFERROR(IF(AF79>Year_to_commence_operations_upper,(VLOOKUP(AF79,'3. Input Sheet '!$C$31:$I$80,7,FALSE)*AF81*Membership_rate_per_annum_upper)*AF84,""),0) -> 0 | AG100: =IFERROR(IF(AG79>Year_to_commence_operations_upper,(VLOOKUP(AG79,'3. Input Sheet '!$C$31:$I$80,7,FALSE)*AG81*Membership_rate_per_annum_upper)*AG84,""),0) -> 0 | AH100: =IFERROR(IF(AH79>Year_to_commence_operations_upper,(VLOOKUP(AH79,'3. Input Sheet '!$C$31:$I$80,7,FALSE)*AH81*Membership_rate_per_annum_upper)*AH84,""),0) -> 0
C101: ='[1]Input Sheet'!$C$84 -> Accommodation income | E101: £ | F101: 493930.9801 | I101: =IFERROR(IF(I79>Year_to_commence_operations_upper,AccommodationNumber_of_rooms_upper*AccommodationPrice_per_night_upper*AccommodationNights_in_operation_upper*AccommodationOccupancy_upper*I81*I84,""),0) ->  | K101: 52531.25 | L101: 53844.53125 | M101: 55190.64453 | N101: 56570.41064 | O101: 28992.33546 | P101: 59434.28768 | Q101: 60920.14488 | R101: 62443.1485 | S101: 64004.22721 | T101: 0 | U101: 0 | V101: 0 | W101: 0 | X101: 0 | Y101: 0 | Z101: 0 | AA101: 0 | AB101: 0 | AC101: 0 | AD101: 0 | AE101: 0 | AF101: 0 | AG101: 0 | AH101: 0
C102: ='[1]Input Sheet'!$C$90 -> Rental space income | E102: £ | F102: 0 | I102: =IFERROR(IF(I79>Year_to_commence_operations_upper,RentalSpaceIncomeRent_per_sq_ft_upper*RentalSpaceIncomeRental_area__sq_ft_upper*I81*I84,""),0) ->  | K102: 0 | L102: 0 | M102: 0 | N102: 0 | O102: 0 | P102: 0 | Q102: 0 | R102: 0 | S102: 0 | T102: 0 | U102: 0 | V102: 0 | W102: 0 | X102: 0 | Y102: 0 | Z102: 0 | AA102: 0 | AB102: 0 | AC102: 0 | AD102: 0 | AE102: 0 | AF102: 0 | AG102: 0 | AH102: 0
C103: ='[1]Input Sheet'!$C$95 -> Room & equipment hire income | E103: £ | F103: 0 | I103: =IFERROR(IF(I79>Year_to_commence_operations_upper,Room_EquipmentHire_Number_of_rooms_upper*Room_EquipmentHireBlended_rate_day_upper*Room_EquipmentHireDays_in_operation_upper*Room_EquipmentHireOccupancy_upper*I81*I84,""),0) ->  | K103: 0 | L103: 0 | M103: 0 | N103: 0 | O103: 0 | P103: 0 | Q103: 0 | R103: 0 | S103: 0 | T103: 0 | U103: 0 | V103: 0 | W103: 0 | X103: 0 | Y103: 0 | Z103: 0 | AA103: 0 | AB103: 0 | AC103: 0 | AD103: 0 | AE103: 0 | AF103: 0 | AG103: 0 | AH103: 0
C104: ='[1]Input Sheet'!$C$101 -> Restaurant and private dining income | E104: £ | F104: 0 | I104: =IFERROR(IF(I79>Year_to_commence_operations_upper,RestaurantCovers_per_day_upper*RestaurantPrice_cover_upper*RestaurantDays_in_operation_upper*I81*I84,""),0) ->  | K104: 0 | L104: 0 | M104: 0 | N104: 0 | O104: 0 | P104: 0 | Q104: 0 | R104: 0 | S104: 0 | T104: 0 | U104: 0 | V104: 0 | W104: 0 | X104: 0 | Y104: 0 | Z104: 0 | AA104: 0 | AB104: 0 | AC104: 0 | AD104: 0 | AE104: 0 | AF104: 0 | AG104: 0 | AH104: 0
C105: ='[1]Input Sheet'!$C$107 -> Events income | E105: £ | F105: 0 | I105: =IFERROR(IF(I79>Year_to_commence_operations_upper,EventsincomeNumber_of_events_per_annum_upper*EventsincomeAverage_takings_event_upper*Events_upper*I81*I84,""),0) ->  | K105: 0 | L105: 0 | M105: 0 | N105: 0 | O105: 0 | P105: 0 | Q105: 0 | R105: 0 | S105: 0 | T105: 0 | U105: 0 | V105: 0 | W105: 0 | X105: 0 | Y105: 0 | Z105: 0 | AA105: 0 | AB105: 0 | AC105: 0 | AD105: 0 | AE105: 0 | AF105: 0 | AG105: 0 | AH105: 0
C106: ='[1]Input Sheet'!$C$112 -> Income from provision of services | E106: £ | F106: 0 | I106: =IFERROR(IF(I79>Year_to_commence_operations_upper,IncomefromProvisionServicesAverage_service_price_upper*IncomefromProvisionServicesTarget_service_volume_per_annum_upper*I81*I84,""),0) ->  | K106: 0 | L106: 0 | M106: 0 | N106: 0 | O106: 0 | P106: 0 | Q106: 0 | R106: 0 | S106: 0 | T106: 0 | U106: 0 | V106: 0 | W106: 0 | X106: 0 | Y106: 0 | Z106: 0 | AA106: 0 | AB106: 0 | AC106: 0 | AD106: 0 | AE106: 0 | AF106: 0 | AG106: 0 | AH106: 0
C107: ='[1]Input Sheet'!$C$117 -> Sale of goods income | E107: £ | F107: 0 | I107: =IFERROR(IF(I79>Year_to_commence_operations_upper,GoodsIncomeAverage_sales_price_upper*GoodsIncomeTarget_sales_volume_per_annum_upper*I81*I84,""),0) ->  | K107: 0 | L107: 0 | M107: 0 | N107: 0 | O107: 0 | P107: 0 | Q107: 0 | R107: 0 | S107: 0 | T107: 0 | U107: 0 | V107: 0 | W107: 0 | X107: 0 | Y107: 0 | Z107: 0 | AA107: 0 | AB107: 0 | AC107: 0 | AD107: 0 | AE107: 0 | AF107: 0 | AG107: 0 | AH107: 0
B109: Total Revenue | E109: £ | F109: =SUM(I109:AH109) -> 1179394.58 | I109: =SUM(I100:I107) -> 0 | J109: =SUM(J100:J107) -> 0 | K109: 128806.625 | L109: 171117.9203 | M109: 215464.2762 | N109: 261921.0013 | O109: 155282.9487 | P109: 59434.28768 | Q109: 60920.14488 | R109: 62443.1485 | S109: 64004.22721 | T109: 0 | U109: 0 | V109: 0 | W109: 0 | X109: 0 | Y109: 0 | Z109: 0 | AA109: 0 | AB109: 0 | AC109: 0 | AD109: 0 | AE109: 0 | AF109: 0 | AG109: 0 | AH109: 0
B111: Expenditure
C112: ='[1]Input Sheet'!$D$124 -> Staff costs | E112: £ | F112: =SUM(I112:AH112) -> -88907.57643 | I112: =IFERROR(IF(I79>Year_to_commence_operations_upper,-Staff_costs_upper*I81*I84,""),0) ->  | K112: -9455.625 | L112: -9692.015625 | M112: -9934.316016 | N112: -10182.67392 | O112: -5218.620382 | P112: -10698.17178 | Q112: -10965.62608 | R112: -11239.76673 | S112: -11520.7609 | T112: 0 | U112: 0 | V112: 0 | W112: 0 | X112: 0 | Y112: 0 | Z112: 0 | AA112: 0 | AB112: 0 | AC112: 0 | AD112: 0 | AE112: 0 | AF112: 0 | AG112: 0 | AH112: 0
C113: ='[1]Input Sheet'!$D$126 -> Cost of sales | E113: £ | F113: 0 | I113: =IFERROR(IF(I79>Year_to_commence_operations_upper,-Cost_of_sales_upper*I81*I84,""),0) ->  | K113: 0 | L113: 0 | M113: 0 | N113: 0 | O113: 0 | P113: 0 | Q113: 0 | R113: 0 | S113: 0 | T113: 0 | U113: 0 | V113: 0 | W113: 0 | X113: 0 | Y113: 0 | Z113: 0 | AA113: 0 | AB113: 0 | AC113: 0 | AD113: 0 | AE113: 0 | AF113: 0 | AG113: 0 | AH113: 0
C114: ='[1]Input Sheet'!$D$128 -> Marketing costs per annum | E114: £ | F114: 0 | I114: =IFERROR(IF(I79>Year_to_commence_operations_upper,-Marketing_costs_per_annum_upper*I81*I84,""),0) ->  | K114: 0 | L114: 0 | M114: 0 | N114: 0 | O114: 0 | P114: 0 | Q114: 0 | R114: 0 | S114: 0 | T114: 0 | U114: 0 | V114: 0 | W114: 0 | X114: 0 | Y114: 0 | Z114: 0 | AA114: 0 | AB114: 0 | AC114: 0 | AD114: 0 | AE114: 0 | AF114: 0 | AG114: 0 | AH114: 0
C115: ='[1]Input Sheet'!$D$129 -> Other opex | E115: £ | F115: 0 | I115: =IFERROR(IF(I79>Year_to_commence_operations_upper,-Other_opex_upper*I81*I84,""),0) ->  | K115: 0 | L115: 0 | M115: 0 | N115: 0 | O115: 0 | P115: 0 | Q115: 0 | R115: 0 | S115: 0 | T115: 0 | U115: 0 | V115: 0 | W115: 0 | X115: 0 | Y115: 0 | Z115: 0 | AA115: 0 | AB115: 0 | AC115: 0 | AD115: 0 | AE115: 0 | AF115: 0 | AG115: 0 | AH115: 0
C116: ='[1]Input Sheet'!$D$131 -> Estates costs | E116: £ | F116: 0 | I116: =IFERROR(IF(I79>Year_to_commence_operations_upper,-EstatesArea_sq_ft_upper*EstatesCost_sq_ft_upper*I81*I84,""),0) ->  | K116: 0 | L116: 0 | M116: 0 | N116: 0 | O116: 0 | P116: 0 | Q116: 0 | R116: 0 | S116: 0 | T116: 0 | U116: 0 | V116: 0 | W116: 0 | X116: 0 | Y116: 0 | Z116: 0 | AA116: 0 | AB116: 0 | AC116: 0 | AD116: 0 | AE116: 0 | AF116: 0 | AG116: 0 | AH116: 0
C117: ='[1]Input Sheet'!$D$135 -> Facilities Management costs | E117: £ | F117: 0 | I117: =IFERROR(IF(I79>Year_to_commence_operations_upper,-FMArea_sq_ft_upper*FMCost_sq_ft_upper*I81*I84,""),0) ->  | K117: 0 | L117: 0 | M117: 0 | N117: 0 | O117: 0 | P117: 0 | Q117: 0 | R117: 0 | S117: 0 | T117: 0 | U117: 0 | V117: 0 | W117: 0 | X117: 0 | Y117: 0 | Z117: 0 | AA117: 0 | AB117: 0 | AC117: 0 | AD117: 0 | AE117: 0 | AF117: 0 | AG117: 0 | AH117: 0
C118: ='[1]Input Sheet'!$D$139 -> Equipment cost | E118: £ | F118: 0 | I118: =IFERROR(IF(I79>Year_to_commence_operations_upper,-Equipment_cost_upper*I81*I84,""),0) ->  | K118: 0 | L118: 0 | M118: 0 | N118: 0 | O118: 0 | P118: 0 | Q118: 0 | R118: 0 | S118: 0 | T118: 0 | U118: 0 | V118: 0 | W118: 0 | X118: 0 | Y118: 0 | Z118: 0 | AA118: 0 | AB118: 0 | AC118: 0 | AD118: 0 | AE118: 0 | AF118: 0 | AG118: 0 | AH118: 0
C119: ='[1]Input Sheet'!$D$140 -> Promotions and events | E119: £ | F119: =SUM(I119:AH119) -> 0 | I119: =IFERROR(IF(I79>Year_to_commence_operations_upper,-Promotions_and_events_upper*I81*I84,""),0) ->  | K119: 0 | L119: 0 | M119: 0 | N119: 0 | O119: 0 | P119: 0 | Q119: 0 | R119: 0 | S119: 0 | T119: 0 | U119: 0 | V119: 0 | W119: 0 | X119: 0 | Y119: 0 | Z119: 0 | AA119: 0 | AB119: 0 | AC119: 0 | AD119: 0 | AE119: 0 | AF119: 0 | AG119: 0 | AH119: 0
C120: ='[1]Input Sheet'!$D$141 -> Other attributable central costs | E120: £ | F120: =SUM(I120:AH120) -> 0 | I120: =IFERROR(IF(I79>Year_to_commence_operations_upper,-Other_attributable_central_costs_upper*I81*I84,""),0) ->  | K120: 0 | L120: 0 | M120: 0 | N120: 0 | O120: 0 | P120: 0 | Q120: 0 | R120: 0 | S120: 0 | T120: 0 | U120: 0 | V120: 0 | W120: 0 | X120: 0 | Y120: 0 | Z120: 0 | AA120: 0 | AB120: 0 | AC120: 0 | AD120: 0 | AE120: 0 | AF120: 0 | AG120: 0 | AH120: 0
C121: ='[1]Input Sheet'!$D$142 -> Lease costs | E121: £ | F121: 0 | I121: =IFERROR(IF(I79>Year_to_commence_operations_upper,-Lease_costs_upper*I81*I84,""),0) ->  | K121: 0 | L121: 0 | M121: 0 | N121: 0 | O121: 0 | P121: 0 | Q121: 0 | R121: 0 | S121: 0 | T121: 0 | U121: 0 | V121: 0 | W121: 0 | X121: 0 | Y121: 0 | Z121: 0 | AA121: 0 | AB121: 0 | AC121: 0 | AD121: 0 | AE121: 0 | AF121: 0 | AG121: 0 | AH121: 0
C122: ='[1]Input Sheet'!$D$143 -> Rates | E122: £ | F122: 0 | I122: =IFERROR(IF(I79>Year_to_commence_operations_upper,-Rates_upper*I81*I84,""),0) ->  | K122: 0 | L122: 0 | M122: 0 | N122: 0 | O122: 0 | P122: 0 | Q122: 0 | R122: 0 | S122: 0 | T122: 0 | U122: 0 | V122: 0 | W122: 0 | X122: 0 | Y122: 0 | Z122: 0 | AA122: 0 | AB122: 0 | AC122: 0 | AD122: 0 | AE122: 0 | AF122: 0 | AG122: 0 | AH122: 0
C123: ='[1]Input Sheet'!$D$144 -> Other costs | E123: £ | F123: 0 | I123: =IFERROR(IF(I79>Year_to_commence_operations_upper,-Other_costs_upper*I81*I84,""),0) ->  | K123: 0 | L123: 0 | M123: 0 | N123: 0 | O123: 0 | P123: 0 | Q123: 0 | R123: 0 | S123: 0 | T123: 0 | U123: 0 | V123: 0 | W123: 0 | X123: 0 | Y123: 0 | Z123: 0 | AA123: 0 | AB123: 0 | AC123: 0 | AD123: 0 | AE123: 0 | AF123: 0 | AG123: 0 | AH123: 0
B125: Total Expenditure | E125: £ | F125: =SUM(I125:AH125) -> -88907.57643 | I125: =SUM(I112:I123) -> 0 | J125: =SUM(J112:J123) -> 0 | K125: -9455.625 | L125: -9692.015625 | M125: -9934.316016 | N125: -10182.67392 | O125: -5218.620382 | P125: -10698.17178 | Q125: -10965.62608 | R125: -11239.76673 | S125: -11520.7609 | T125: 0 | U125: 0 | V125: 0 | W125: 0 | X125: 0 | Y125: 0 | Z125: 0 | AA125: 0 | AB125: 0 | AC125: 0 | AD125: 0 | AE125: 0 | AF125: 0 | AG125: 0 | AH125: 0
A127: Terminal value | E127: £ | F127: =SUM(I127:AH127) -> 704046.4993 | I127: =IF(I79=Number_of_years__max,Terminal_value_upper*I81,0) -> 0 | J127: 0 | K127: 0 | L127: 0 | M127: 0 | N127: 0 | O127: 0 | P127: 0 | Q127: 0 | R127: 0 | S127: 704046.4993 | T127: 0 | U127: 0 | V127: 0 | W127: 0 | X127: 0 | Y127: 0 | Z127: 0 | AA127: 0 | AB127: 0 | AC127: 0 | AD127: 0 | AE127: 0 | AF127: 0 | AG127: 0 | AH127: 0
A129: Free Cash Flow | E129: £ | F129: =SUM(I129:AH129) -> 1268501.661 | I129: =I109+I125+I95+I127 -> -202500 | J129: =J109+J125+J95+J127 -> -207562.5 | K129: =IF(K109+K125+K95+K127=0,"",K109+K125+K95+K127) -> 119351 | L129: =IF(L109+L125+L95+L127=0,"",L109+L125+L95+L127) -> 161425.9047 | M129: 205529.9602 | N129: 251738.3274 | O129: 34094.9865 | P129: 48736.1159 | Q129: 49954.5188 | R129: 51203.38177 | S129: 756529.9656
A131: Operating cash | E131: £ | F131: =SUM(I131:AH131) -> 1090487.003 | I131: =I109+I125 -> 0 | J131: =J109+J125 -> 0 | K131: =IF(K109+K125=0,"",K109+K125) -> 119351 | L131: 161425.9047 | M131: 205529.9602 | N131: 251738.3274 | O131: 150064.3283 | P131: 48736.1159 | Q131: 49954.5188 | R131: 51203.38177 | S131: 52483.46631 | T131: =IF(T109+T125=0,"",T109+T125) ->  | U131: =IF(U109+U125=0,"",U109+U125) -> 
A133: Cumulative Cash Flow in year (excluding interest) | I133: =IFERROR(H133+I129,"") -> -202500 | J133: =IFERROR(I133+J129,"") -> -410062.5 | K133: -290711.5 | L133: -129285.5953 | M133: 76244.36492 | N133: 327982.6923 | O133: 362077.6788 | P133: 410813.7947 | Q133: 460768.3135 | R133: 511971.6953 | S133: 1268501.661 | T133: =IFERROR(S133+T129,"") ->  | U133: =IFERROR(T133+U129,"") -> 
A135: Profit Margin | I135: =IFERROR(-(I109+I125)/I125,0) -> 0 | J135: =IFERROR(-(J109+J125)/J125,0) -> 0 | K135: 12.62222222 | L135: 16.65555556 | M135: 20.68888889 | N135: 24.72222222 | O135: 28.75555556 | P135: 4.555555556 | Q135: 4.555555556 | R135: 4.555555556 | S135: 4.555555556 | T135: 0 | U135: 0 | V135: 0 | W135: 0 | X135: 0 | Y135: 0 | Z135: 0 | AA135: 0 | AB135: 0 | AC135: 0 | AD135: 0 | AE135: 0 | AF135: 0 | AG135: 0 | AH135: 0
B139: NPV (Upper) | C139: =NPV(OtherFactorsDiscount_factor_RPI_2.5_upper,I129:AH129) -> 659114.6919 | E139: £
B140: IRR (Upper) | C140: =IRR(I129:AH129) -> 0.3019665838 | E140: %
B141: MIRR (Upper) | C141: =MIRR(I129:AH129,OtherFactorsDiscount_factor_RPI_2.5_upper,OtherFactorsDiscount_factor_RPI_2.5_upper) -> 0.1790740876 | E141: %
B143: Payback (Upper Case) | C143: =MAX(I143:AH143) -> 3.629035276 | E143: Years | F143: =CONCATENATE(INT(ROUND(C143*12,0)/12)," years ", ROUND(C143*12,0)-(INT(ROUND(C143*12,0)/12)*12)," months") -> 3 years 8 months | J143: =IFERROR(IF(AND(K133>0,J133<0),K79-(K133/K129),0),0) -> 0 | K143: =IFERROR(IF(AND(L133>0,K133<0),L79-(L133/L129),0),0) -> 0 | L143: 3.629035276 | M143: 0 | N143: 0 | O143: 0 | P143: 0 | Q143: 0 | R143: 0 | S143: 0 | T143: 0 | U143: 0 | V143: 0 | W143: 0 | X143: 0 | Y143: 0 | Z143: 0 | AA143: 0 | AB143: 0 | AC143: 0 | AD143: 0 | AE143: 0 | AF143: 0 | AG143: 0 | AH143: 0
B145: Yield on cash (Upper) | C145: =-(AVERAGE(I131:AH131))/(Total_capital_upper) -> 0.1884585195
B149: ='3. Input Sheet '!J5 -> Lower Case
A151: Year | D151: Constant | E151: Units | F151: Total | G151: Sparkline | I151: ='2. Model Assumptions'!D8 -> 2016 | J151: =IFERROR(IF((J152+$I$6)<($I$6+Number_of_years__max+1),(J152+$I$6),""),"") -> 2017 | K151: 2018 | L151: 2019 | M151: 2020 | N151: 2021 | O151: 2022 | P151: 2023 | Q151: 2024 | R151: 2025 | S151: 2026
I152: 0 | J152: =IFERROR(IF((I152+1)<Number_of_years__max+1,(I152+1),""),"") -> 1 | K152: 2 | L152: 3 | M152: 4 | N152: 5 | O152: 6 | P152: 7 | Q152: 8 | R152: 9 | S152: 10
B154: Inflation Index | D154: =Inflation -> 0.025 | E154: % | I154: =(1+Inflation)^I152 -> 1 | J154: 1.025 | K154: 1.050625 | L154: 1.076890625 | M154: 1.103812891 | N154: 1.131408213 | O154: 1.159693418 | P154: 1.188685754 | Q154: 1.218402898 | R154: 1.24886297 | S154: 1.280084544
C156: Refurbishment | I156: =IF(IFERROR(VLOOKUP(I152,'3. Input Sheet '!$J$160:$J$210,1,FALSE),0)>0,"Yes","No") -> No | J156: =IF(IFERROR(VLOOKUP(J152,'3. Input Sheet '!$J$160:$J$210,1,FALSE),0)>0,"Yes","No") -> No | K156: =IF(IFERROR(VLOOKUP(K152,'3. Input Sheet '!$J$160:$J$210,1,FALSE),0)>0,"Yes","No") -> No | L156: =IF(IFERROR(VLOOKUP(L152,'3. Input Sheet '!$J$160:$J$210,1,FALSE),0)>0,"Yes","No") -> No | M156: =IF(IFERROR(VLOOKUP(M152,'3. Input Sheet '!$J$160:$J$210,1,FALSE),0)>0,"Yes","No") -> Yes | N156: =IF(IFERROR(VLOOKUP(N152,'3. Input Sheet '!$J$160:$J$210,1,FALSE),0)>0,"Yes","No") -> No | O156: =IF(IFERROR(VLOOKUP(O152,'3. Input Sheet '!$J$160:$J$210,1,FALSE),0)>0,"Yes","No") -> No | P156: =IF(IFERROR(VLOOKUP(P152,'3. Input Sheet '!$J$160:$J$210,1,FALSE),0)>0,"Yes","No") -> No | Q156: =IF(IFERROR(VLOOKUP(Q152,'3. Input Sheet '!$J$160:$J$210,1,FALSE),0)>0,"Yes","No") -> Yes | R156: =IF(IFERROR(VLOOKUP(R152,'3. Input Sheet '!$J$160:$J$210,1,FALSE),0)>0,"Yes","No") -> No | S156: =IF(IFERROR(VLOOKUP(S152,'3. Input Sheet '!$J$160:$J$210,1,FALSE),0)>0,"Yes","No") -> No | T156: =IF(IFERROR(VLOOKUP(T152,'3. Input Sheet '!$J$160:$J$210,1,FALSE),0)>0,"Yes","No") -> Yes | U156: =IF(IFERROR(VLOOKUP(U152,'3. Input Sheet '!$J$160:$J$210,1,FALSE),0)>0,"Yes","No") -> Yes | V156: =IF(IFERROR(VLOOKUP(V152,'3. Input Sheet '!$J$160:$J$210,1,FALSE),0)>0,"Yes","No") -> Yes | W156: =IF(IFERROR(VLOOKUP(W152,'3. Input Sheet '!$J$160:$J$210,1,FALSE),0)>0,"Yes","No") -> Yes | X156: =IF(IFERROR(VLOOKUP(X152,'3. Input Sheet '!$J$160:$J$210,1,FALSE),0)>0,"Yes","No") -> Yes | Y156: =IF(IFERROR(VLOOKUP(Y152,'3. Input Sheet '!$J$160:$J$210,1,FALSE),0)>0,"Yes","No") -> Yes | Z156: =IF(IFERROR(VLOOKUP(Z152,'3. Input Sheet '!$J$160:$J$210,1,FALSE),0)>0,"Yes","No") -> Yes | AA156: =IF(IFERROR(VLOOKUP(AA152,'3. Input Sheet '!$J$160:$J$210,1,FALSE),0)>0,"Yes","No") -> Yes | AB156: =IF(IFERROR(VLOOKUP(AB152,'3. Input Sheet '!$J$160:$J$210,1,FALSE),0)>0,"Yes","No") -> Yes | AC156: =IF(IFERROR(VLOOKUP(AC152,'3. Input Sheet '!$J$160:$J$210,1,FALSE),0)>0,"Yes","No") -> Yes | AD156: =IF(IFERROR(VLOOKUP(AD152,'3. Input Sheet '!$J$160:$J$210,1,FALSE),0)>0,"Yes","No") -> Yes | AE156: =IF(IFERROR(VLOOKUP(AE152,'3. Input Sheet '!$J$160:$J$210,1,FALSE),0)>0,"Yes","No") -> Yes | AF156: =IF(IFERROR(VLOOKUP(AF152,'3. Input Sheet '!$J$160:$J$210,1,FALSE),0)>0,"Yes","No") -> Yes | AG156: =IF(IFERROR(VLOOKUP(AG152,'3. Input Sheet '!$J$160:$J$210,1,FALSE),0)>0,"Yes","No") -> Yes | AH156: =IF(IFERROR(VLOOKUP(AH152,'3. Input Sheet '!$J$160:$J$210,1,FALSE),0)>0,"Yes","No") -> Yes
C157: Refurbishment factor | I157: =IF(I156="No",1,Refurbishment_factor_lower) -> 1 | J157: 1 | K157: 1 | L157: 1 | M157: 0.5 | N157: 1 | O157: 1 | P157: 1 | Q157: 0.5 | R157: 1 | S157: 1 | T157: 0.5 | U157: 0.5 | V157: 0.5 | W157: 0.5 | X157: 0.5 | Y157: 0.5 | Z157: 0.5 | AA157: 0.5 | AB157: 0.5 | AC157: 0.5 | AD157: 0.5 | AE157: 0.5 | AF157: 0.5 | AG157: 0.5 | AH157: 0.5
A159: Balance sheet
B160: Capital
C161: Initial capital cost | E161: £ | F161: =SUM(I161:AH161) -> -513873.8086 | I161: =IFERROR(IF(I152<Number_of_years_for_capex_lower,-Initialcapitalcostslower/Number_of_years_for_capex_lower*I154,""),0) -> -123750 | J161: -126843.75 | K161: -130014.8437 | L161: -133265.2148
C162: ='[1]Input Sheet'!$C$14 -> Professional fees | E162: £ | F162: =SUM(I162:AH162) -> 0 | I162: =IFERROR(IF(I152<Number_of_years_for_capex_lower,-Professional_fees_lower/Number_of_years_for_capex_lower*I154,""),0) -> 0 | J162: 0 | K162: 0 | L162: 0
C163: ='[1]Input Sheet'!$C$15 -> VAT | E163: £ | F163: 0 | I163: =IFERROR(IF(I152<Number_of_years_for_capex_lower,-VAT_lower/Number_of_years_for_capex_lower*I154,""),0) -> 0 | J163: 0 | K163: 0 | L163: 0
C164: ='[1]Input Sheet'!$C$16 -> Other fees/duties | E164: £ | F164: 0 | I164: =IFERROR(IF(I154<Number_of_years_for_capex_lower,-Other_fees_duties_lower/Number_of_years_for_capex_lower*I156,""),0) -> 0 | J164: 0 | K164: 0 | L164: 0 | M164: 0 | N164: 0 | O164: 0 | P164: 0 | Q164: 0 | R164: 0 | S164: 0 | T164: 0 | U164: 0 | V164: 0 | W164: 0 | X164: 0 | Y164: 0 | Z164: 0 | AA164: 0 | AB164: 0 | AC164: 0 | AD164: 0 | AE164: 0 | AF164: 0 | AG164: 0 | AH164: 0
C165: ='[1]Input Sheet'!$C$17 -> Contingency | E165: £ | F165: 0 | I165: =IFERROR(IF(I155<Number_of_years_for_capex_lower,-Contingency_lower/Number_of_years_for_capex_lower*I157,""),0) -> 0 | J165: 0 | K165: 0 | L165: 0 | M165: 0 | N165: 0 | O165: 0 | P165: 0 | Q165: 0 | R165: 0 | S165: 0 | T165: 0 | U165: 0 | V165: 0 | W165: 0 | X165: 0 | Y165: 0 | Z165: 0 | AA165: 0 | AB165: 0 | AC165: 0 | AD165: 0 | AE165: 0 | AF165: 0 | AG165: 0 | AH165: 0
C166: Refurbishment | E166: £ | F166: =SUM(I166:AH166) -> -696664.7364 | I166: =IFERROR(IF(AND(I156="Yes",I152>1),-Refurbishment_costs_sq_ft_lower*Totalarea_sqft_lower*I154,0),0) -> 0 | J166: 0 | K166: 0 | L166: 0 | M166: -331143.8672 | N166: 0 | O166: 0 | P166: 0 | Q166: -365520.8693 | R166: 0 | S166: 0 | T166: 0 | U166: 0 | V166: 0 | W166: 0 | X166: 0 | Y166: 0 | Z166: 0 | AA166: 0 | AB166: 0 | AC166: 0 | AD166: 0 | AE166: 0 | AF166: 0 | AG166: 0 | AH166: 0
A168: Total capital | E168: £ | F168: =SUM(I168:AH168) -> -1210538.545 | I168: =SUM(I161:I166) -> -123750 | J168: -126843.75 | K168: -130014.8437 | L168: -133265.2148 | M168: -331143.8672 | N168: 0 | O168: 0 | P168: 0 | Q168: -365520.8693 | R168: 0 | S168: 0 | T168: 0 | U168: 0 | V168: 0 | W168: 0 | X168: 0 | Y168: 0 | Z168: 0 | AA168: 0 | AB168: 0 | AC168: 0 | AD168: 0 | AE168: 0 | AF168: 0 | AG168: 0 | AH168: 0
A170: Cash Flow Statement
A171: Income Statement
B172: Revenue
C173: ='[1]Input Sheet'!$B$28 -> Membership income | E173: £ | F173: =SUM(I173:AH173) -> 489760.4063 | I173: =IFERROR(IF(I152>Year_to_commence_operations_lower,(VLOOKUP(I152,'3. Input Sheet '!$C$31:$J$80,8,FALSE)*I154*Membership_rate_per_annum_lower)*I157,""),0) ->  | J173: =IFERROR(IF(J152>Year_to_commence_operations_lower,(VLOOKUP(J152,'3. Input Sheet '!$C$31:$J$80,8,FALSE)*J154*Membership_rate_per_annum_lower)*J157,""),0) ->  | K173: =IFERROR(IF(K152>Year_to_commence_operations_lower,(VLOOKUP(K152,'3. Input Sheet '!$C$31:$J$80,8,FALSE)*K154*Membership_rate_per_annum_lower)*K157,""),0) -> 51060.375 | L173: =IFERROR(IF(L152>Year_to_commence_operations_lower,(VLOOKUP(L152,'3. Input Sheet '!$C$31:$J$80,8,FALSE)*L154*Membership_rate_per_annum_lower)*L157,""),0) -> 78505.32656 | M173: =IFERROR(IF(M152>Year_to_commence_operations_lower,(VLOOKUP(M152,'3. Input Sheet '!$C$31:$J$80,8,FALSE)*M154*Membership_rate_per_annum_lower)*M157,""),0) -> 53645.30648 | N173: =IFERROR(IF(N152>Year_to_commence_operations_lower,(VLOOKUP(N152,'3. Input Sheet '!$C$31:$J$80,8,FALSE)*N154*Membership_rate_per_annum_lower)*N157,""),0) -> 137466.0979 | O173: =IFERROR(IF(O152>Year_to_commence_operations_lower,(VLOOKUP(O152,'3. Input Sheet '!$C$31:$J$80,8,FALSE)*O154*Membership_rate_per_annum_lower)*O157,""),0) -> 169083.3004 | P173: =IFERROR(IF(P152>Year_to_commence_operations_lower,(VLOOKUP(P152,'3. Input Sheet '!$C$31:$J$80,8,FALSE)*P154*Membership_rate_per_annum_lower)*P157,""),0) -> 0 | Q173: =IFERROR(IF(Q152>Year_to_commence_operations_lower,(VLOOKUP(Q152,'3. Input Sheet '!$C$31:$J$80,8,FALSE)*Q154*Membership_rate_per_annum_lower)*Q157,""),0) -> 0 | R173: =IFERROR(IF(R152>Year_to_commence_operations_lower,(VLOOKUP(R152,'3. Input Sheet '!$C$31:$J$80,8,FALSE)*R154*Membership_rate_per_annum_lower)*R157,""),0) -> 0 | S173: =IFERROR(IF(S152>Year_to_commence_operations_lower,(VLOOKUP(S152,'3. Input Sheet '!$C$31:$J$80,8,FALSE)*S154*Membership_rate_per_annum_lower)*S157,""),0) -> 0 | T173: =IFERROR(IF(T152>Year_to_commence_operations_lower,(VLOOKUP(T152,'3. Input Sheet '!$C$31:$J$80,8,FALSE)*T154*Membership_rate_per_annum_lower)*T157,""),0) -> 0 | U173: =IFERROR(IF(U152>Year_to_commence_operations_lower,(VLOOKUP(U152,'3. Input Sheet '!$C$31:$J$80,8,FALSE)*U154*Membership_rate_per_annum_lower)*U157,""),0) -> 0 | V173: =IFERROR(IF(V152>Year_to_commence_operations_lower,(VLOOKUP(V152,'3. Input Sheet '!$C$31:$J$80,8,FALSE)*V154*Membership_rate_per_annum_lower)*V157,""),0) -> 0 | W173: =IFERROR(IF(W152>Year_to_commence_operations_lower,(VLOOKUP(W152,'3. Input Sheet '!$C$31:$J$80,8,FALSE)*W154*Membership_rate_per_annum_lower)*W157,""),0) -> 0 | X173: =IFERROR(IF(X152>Year_to_commence_operations_lower,(VLOOKUP(X152,'3. Input Sheet '!$C$31:$J$80,8,FALSE)*X154*Membership_rate_per_annum_lower)*X157,""),0) -> 0 | Y173: =IFERROR(IF(Y152>Year_to_commence_operations_lower,(VLOOKUP(Y152,'3. Input Sheet '!$C$31:$J$80,8,FALSE)*Y154*Membership_rate_per_annum_lower)*Y157,""),0) -> 0 | Z173: =IFERROR(IF(Z152>Year_to_commence_operations_lower,(VLOOKUP(Z152,'3. Input Sheet '!$C$31:$J$80,8,FALSE)*Z154*Membership_rate_per_annum_lower)*Z157,""),0) -> 0 | AA173: =IFERROR(IF(AA152>Year_to_commence_operations_lower,(VLOOKUP(AA152,'3. Input Sheet '!$C$31:$J$80,8,FALSE)*AA154*Membership_rate_per_annum_lower)*AA157,""),0) -> 0 | AB173: =IFERROR(IF(AB152>Year_to_commence_operations_lower,(VLOOKUP(AB152,'3. Input Sheet '!$C$31:$J$80,8,FALSE)*AB154*Membership_rate_per_annum_lower)*AB157,""),0) -> 0 | AC173: =IFERROR(IF(AC152>Year_to_commence_operations_lower,(VLOOKUP(AC152,'3. Input Sheet '!$C$31:$J$80,8,FALSE)*AC154*Membership_rate_per_annum_lower)*AC157,""),0) -> 0 | AD173: =IFERROR(IF(AD152>Year_to_commence_operations_lower,(VLOOKUP(AD152,'3. Input Sheet '!$C$31:$J$80,8,FALSE)*AD154*Membership_rate_per_annum_lower)*AD157,""),0) -> 0 | AE173: =IFERROR(IF(AE152>Year_to_commence_operations_lower,(VLOOKUP(AE152,'3. Input Sheet '!$C$31:$J$80,8,FALSE)*AE154*Membership_rate_per_annum_lower)*AE157,""),0) -> 0 | AF173: =IFERROR(IF(AF152>Year_to_commence_operations_lower,(VLOOKUP(AF152,'3. Input Sheet '!$C$31:$J$80,8,FALSE)*AF154*Membership_rate_per_annum_lower)*AF157,""),0) -> 0 | AG173: =IFERROR(IF(AG152>Year_to_commence_operations_lower,(VLOOKUP(AG152,'3. Input Sheet '!$C$31:$J$80,8,FALSE)*AG154*Membership_rate_per_annum_lower)*AG157,""),0) -> 0 | AH173: =IFERROR(IF(AH152>Year_to_commence_operations_lower,(VLOOKUP(AH152,'3. Input Sheet '!$C$31:$J$80,8,FALSE)*AH154*Membership_rate_per_annum_lower)*AH157,""),0) -> 0
C174: ='[1]Input Sheet'!$C$84 -> Accommodation income | E174: £ | F174: 0 | I174: =IFERROR(IF(I152>Year_to_commence_operations_lower,AccommodationNumber_of_rooms_lower*AccommodationPrice_per_night_lower*AccommodationNights_in_operation_lower*AccommodationOccupancy_lower*I154*I157,""),0) ->  | K174: 0 | L174: 0 | M174: 0 | N174: 0 | O174: 0 | P174: 0 | Q174: 0 | R174: 0 | S174: 0 | T174: 0 | U174: 0 | V174: 0 | W174: 0 | X174: 0 | Y174: 0 | Z174: 0 | AA174: 0 | AB174: 0 | AC174: 0 | AD174: 0 | AE174: 0 | AF174: 0 | AG174: 0 | AH174: 0
C175: ='[1]Input Sheet'!$C$90 -> Rental space income | E175: £ | F175: 0 | I175: =IFERROR(IF(I152>Year_to_commence_operations_lower,RentalSpaceIncomeRent_per_sq_ft_lower*RentalSpaceIncomeRental_area__sq_ft_lower*I154*I157,""),0) ->  | K175: 0 | L175: 0 | M175: 0 | N175: 0 | O175: 0 | P175: 0 | Q175: 0 | R175: 0 | S175: 0 | T175: 0 | U175: 0 | V175: 0 | W175: 0 | X175: 0 | Y175: 0 | Z175: 0 | AA175: 0 | AB175: 0 | AC175: 0 | AD175: 0 | AE175: 0 | AF175: 0 | AG175: 0 | AH175: 0
C176: ='[1]Input Sheet'!$C$95 -> Room & equipment hire income | E176: £ | F176: 0 | I176: =IFERROR(IF(I152>Year_to_commence_operations_lower,Room_EquipmentHire_Number_of_rooms_lower*Room_EquipmentHireBlended_rate_day_lower*Room_EquipmentHireDays_in_operation_lower*Room_EquipmentHireOccupancy_lower*I154*I157,""),0) ->  | K176: 0 | L176: 0 | M176: 0 | N176: 0 | O176: 0 | P176: 0 | Q176: 0 | R176: 0 | S176: 0 | T176: 0 | U176: 0 | V176: 0 | W176: 0 | X176: 0 | Y176: 0 | Z176: 0 | AA176: 0 | AB176: 0 | AC176: 0 | AD176: 0 | AE176: 0 | AF176: 0 | AG176: 0 | AH176: 0
C177: ='[1]Input Sheet'!$C$101 -> Restaurant and private dining income | E177: £ | F177: 0 | I177: =IFERROR(IF(I152>Year_to_commence_operations_lower,RestaurantCovers_per_day_lower*RestaurantPrice_cover_lower*RestaurantDays_in_operation_lower*I154*I157,""),0) ->  | K177: 0 | L177: 0 | M177: 0 | N177: 0 | O177: 0 | P177: 0 | Q177: 0 | R177: 0 | S177: 0 | T177: 0 | U177: 0 | V177: 0 | W177: 0 | X177: 0 | Y177: 0 | Z177: 0 | AA177: 0 | AB177: 0 | AC177: 0 | AD177: 0 | AE177: 0 | AF177: 0 | AG177: 0 | AH177: 0
C178: ='[1]Input Sheet'!$C$107 -> Events income | E178: £ | F178: 0 | I178: =IFERROR(IF(I152>Year_to_commence_operations_lower,EventsincomeNumber_of_events_per_annum_lower*EventsincomeAverage_takings_event_lower*Events_lower*I154*I157,""),0) ->  | K178: 0 | L178: 0 | M178: 0 | N178: 0 | O178: 0 | P178: 0 | Q178: 0 | R178: 0 | S178: 0 | T178: 0 | U178: 0 | V178: 0 | W178: 0 | X178: 0 | Y178: 0 | Z178: 0 | AA178: 0 | AB178: 0 | AC178: 0 | AD178: 0 | AE178: 0 | AF178: 0 | AG178: 0 | AH178: 0
C179: ='[1]Input Sheet'!$C$112 -> Income from provision of services | E179: £ | F179: 0 | I179: =IFERROR(IF(I152>Year_to_commence_operations_lower,IncomefromProvisionServicesAverage_service_price_lower*IncomefromProvisionServicesTarget_service_volume_per_annum_lower*I154*I157,""),0) ->  | K179: 0 | L179: 0 | M179: 0 | N179: 0 | O179: 0 | P179: 0 | Q179: 0 | R179: 0 | S179: 0 | T179: 0 | U179: 0 | V179: 0 | W179: 0 | X179: 0 | Y179: 0 | Z179: 0 | AA179: 0 | AB179: 0 | AC179: 0 | AD179: 0 | AE179: 0 | AF179: 0 | AG179: 0 | AH179: 0
C180: ='[1]Input Sheet'!$C$117 -> Sale of goods income | E180: £ | F180: 0 | I180: =IFERROR(IF(I152>Year_to_commence_operations_lower,GoodsIncomeAverage_sales_price_lower*GoodsIncomeTarget_sales_volume_per_annum_lower*I154*I157,""),0) ->  | K180: 0 | L180: 0 | M180: 0 | N180: 0 | O180: 0 | P180: 0 | Q180: 0 | R180: 0 | S180: 0 | T180: 0 | U180: 0 | V180: 0 | W180: 0 | X180: 0 | Y180: 0 | Z180: 0 | AA180: 0 | AB180: 0 | AC180: 0 | AD180: 0 | AE180: 0 | AF180: 0 | AG180: 0 | AH180: 0
B182: Total Revenue | E182: £ | F182: =SUM(I182:AH182) -> 489760.4063 | I182: =SUM(I173:I180) -> 0 | J182: =SUM(J173:J180) -> 0 | K182: 51060.375 | L182: 78505.32656 | M182: 53645.30648 | N182: 137466.0979 | O182: 169083.3004 | P182: 0 | Q182: 0 | R182: 0 | S182: 0 | T182: 0 | U182: 0 | V182: 0 | W182: 0 | X182: 0 | Y182: 0 | Z182: 0 | AA182: 0 | AB182: 0 | AC182: 0 | AD182: 0 | AE182: 0 | AF182: 0 | AG182: 0 | AH182: 0
B184: Expenditure
C185: ='[1]Input Sheet'!$D$124 -> Staff costs | E185: £ | F185: =SUM(I185:AH185) -> -102270.9426 | I185: =IFERROR(IF(I152>Year_to_commence_operations_lower,-Staff_costs_lower*I154*I157,""),0) ->  | K185: -11556.875 | L185: -11845.79687 | M185: -6070.970898 | N185: -12445.49034 | O185: -12756.6276 | P185: -13075.54329 | Q185: -6701.215936 | R185: -13737.49267 | S185: -14080.92999 | T185: 0 | U185: 0 | V185: 0 | W185: 0 | X185: 0 | Y185: 0 | Z185: 0 | AA185: 0 | AB185: 0 | AC185: 0 | AD185: 0 | AE185: 0 | AF185: 0 | AG185: 0 | AH185: 0
C186: ='[1]Input Sheet'!$D$126 -> Cost of sales | E186: £ | F186: 0 | I186: =IFERROR(IF(I152>Year_to_commence_operations_lower,-Cost_of_sales_lower*I154*I157,""),0) ->  | K186: 0 | L186: 0 | M186: 0 | N186: 0 | O186: 0 | P186: 0 | Q186: 0 | R186: 0 | S186: 0 | T186: 0 | U186: 0 | V186: 0 | W186: 0 | X186: 0 | Y186: 0 | Z186: 0 | AA186: 0 | AB186: 0 | AC186: 0 | AD186: 0 | AE186: 0 | AF186: 0 | AG186: 0 | AH186: 0
C187: ='[1]Input Sheet'!$D$128 -> Marketing costs per annum | E187: £ | F187: 0 | I187: =IFERROR(IF(I152>Year_to_commence_operations_lower,-Marketing_costs_per_annum_lower*I154*I157,""),0) ->  | K187: 0 | L187: 0 | M187: 0 | N187: 0 | O187: 0 | P187: 0 | Q187: 0 | R187: 0 | S187: 0 | T187: 0 | U187: 0 | V187: 0 | W187: 0 | X187: 0 | Y187: 0 | Z187: 0 | AA187: 0 | AB187: 0 | AC187: 0 | AD187: 0 | AE187: 0 | AF187: 0 | AG187: 0 | AH187: 0
C188: ='[1]Input Sheet'!$D$129 -> Other opex | E188: £ | F188: 0 | I188: =IFERROR(IF(I152>Year_to_commence_operations_lower,-Other_opex_lower*I154*I157,""),0) ->  | K188: 0 | L188: 0 | M188: 0 | N188: 0 | O188: 0 | P188: 0 | Q188: 0 | R188: 0 | S188: 0 | T188: 0 | U188: 0 | V188: 0 | W188: 0 | X188: 0 | Y188: 0 | Z188: 0 | AA188: 0 | AB188: 0 | AC188: 0 | AD188: 0 | AE188: 0 | AF188: 0 | AG188: 0 | AH188: 0
C189: ='[1]Input Sheet'!$D$131 -> Estates costs | E189: £ | F189: 0 | I189: =IFERROR(IF(I152>Year_to_commence_operations_lower,-EstatesArea_sq_ft_lower*EstatesCost_sq_ft_lower*I154*I157,""),0) ->  | K189: 0 | L189: 0 | M189: 0 | N189: 0 | O189: 0 | P189: 0 | Q189: 0 | R189: 0 | S189: 0 | T189: 0 | U189: 0 | V189: 0 | W189: 0 | X189: 0 | Y189: 0 | Z189: 0 | AA189: 0 | AB189: 0 | AC189: 0 | AD189: 0 | AE189: 0 | AF189: 0 | AG189: 0 | AH189: 0
C190: ='[1]Input Sheet'!$D$135 -> Facilities Management costs | E190: £ | F190: 0 | I190: =IFERROR(IF(I152>Year_to_commence_operations_lower,-FMArea_sq_ft_lower*FMCost_sq_ft_lower*I154*I157,""),0) ->  | K190: 0 | L190: 0 | M190: 0 | N190: 0 | O190: 0 | P190: 0 | Q190: 0 | R190: 0 | S190: 0 | T190: 0 | U190: 0 | V190: 0 | W190: 0 | X190: 0 | Y190: 0 | Z190: 0 | AA190: 0 | AB190: 0 | AC190: 0 | AD190: 0 | AE190: 0 | AF190: 0 | AG190: 0 | AH190: 0
C191: ='[1]Input Sheet'!$D$139 -> Equipment cost | E191: £ | F191: 0 | I191: =IFERROR(IF(I152>Year_to_commence_operations_lower,-Equipment_cost_lower*I154*I157,""),0) ->  | K191: 0 | L191: 0 | M191: 0 | N191: 0 | O191: 0 | P191: 0 | Q191: 0 | R191: 0 | S191: 0 | T191: 0 | U191: 0 | V191: 0 | W191: 0 | X191: 0 | Y191: 0 | Z191: 0 | AA191: 0 | AB191: 0 | AC191: 0 | AD191: 0 | AE191: 0 | AF191: 0 | AG191: 0 | AH191: 0
C192: ='[1]Input Sheet'!$D$140 -> Promotions and events | E192: £ | F192: =SUM(I192:AH192) -> 0 | I192: =IFERROR(IF(I152>Year_to_commence_operations_lower,-Promotions_and_events_lower*I154*I157,""),0) ->  | K192: 0 | L192: 0 | M192: 0 | N192: 0 | O192: 0 | P192: 0 | Q192: 0 | R192: 0 | S192: 0 | T192: 0 | U192: 0 | V192: 0 | W192: 0 | X192: 0 | Y192: 0 | Z192: 0 | AA192: 0 | AB192: 0 | AC192: 0 | AD192: 0 | AE192: 0 | AF192: 0 | AG192: 0 | AH192: 0
C193: ='[1]Input Sheet'!$D$141 -> Other attributable central costs | E193: £ | F193: =SUM(I193:AH193) -> 0 | I193: =IFERROR(IF(I152>Year_to_commence_operations_lower,-Other_attributable_central_costs_lower*I154*I157,""),0) ->  | K193: 0 | L193: 0 | M193: 0 | N193: 0 | O193: 0 | P193: 0 | Q193: 0 | R193: 0 | S193: 0 | T193: 0 | U193: 0 | V193: 0 | W193: 0 | X193: 0 | Y193: 0 | Z193: 0 | AA193: 0 | AB193: 0 | AC193: 0 | AD193: 0 | AE193: 0 | AF193: 0 | AG193: 0 | AH193: 0
C194: ='[1]Input Sheet'!$D$142 -> Lease costs | E194: £ | F194: 0 | I194: =IFERROR(IF(I152>Year_to_commence_operations_lower,-Lease_costs_lower*I154*I157,""),0) ->  | K194: 0 | L194: 0 | M194: 0 | N194: 0 | O194: 0 | P194: 0 | Q194: 0 | R194: 0 | S194: 0 | T194: 0 | U194: 0 | V194: 0 | W194: 0 | X194: 0 | Y194: 0 | Z194: 0 | AA194: 0 | AB194: 0 | AC194: 0 | AD194: 0 | AE194: 0 | AF194: 0 | AG194: 0 | AH194: 0
C195: ='[1]Input Sheet'!$D$143 -> Rates | E195: £ | F195: 0 | I195: =IFERROR(IF(I152>Year_to_commence_operations_lower,-Rates_lower*I154*I157,""),0) ->  | K195: 0 | L195: 0 | M195: 0 | N195: 0 | O195: 0 | P195: 0 | Q195: 0 | R195: 0 | S195: 0 | T195: 0 | U195: 0 | V195: 0 | W195: 0 | X195: 0 | Y195: 0 | Z195: 0 | AA195: 0 | AB195: 0 | AC195: 0 | AD195: 0 | AE195: 0 | AF195: 0 | AG195: 0 | AH195: 0
C196: ='[1]Input Sheet'!$D$144 -> Other costs | E196: £ | F196: 0 | I196: =IFERROR(IF(I152>Year_to_commence_operations_lower,-Other_costs_lower*I154*I157,""),0) ->  | K196: 0 | L196: 0 | M196: 0 | N196: 0 | O196: 0 | P196: 0 | Q196: 0 | R196: 0 | S196: 0 | T196: 0 | U196: 0 | V196: 0 | W196: 0 | X196: 0 | Y196: 0 | Z196: 0 | AA196: 0 | AB196: 0 | AC196: 0 | AD196: 0 | AE196: 0 | AF196: 0 | AG196: 0 | AH196: 0
B198: Total Expenditure | E198: £ | F198: =SUM(I198:AH198) -> -102270.9426 | I198: =SUM(I185:I196) -> 0 | J198: =SUM(J185:J196) -> 0 | K198: -11556.875 | L198: -11845.79687 | M198: -6070.970898 | N198: -12445.49034 | O198: -12756.6276 | P198: -13075.54329 | Q198: -6701.215936 | R198: -13737.49267 | S198: -14080.92999 | T198: 0 | U198: 0 | V198: 0 | W198: 0 | X198: 0 | Y198: 0 | Z198: 0 | AA198: 0 | AB198: 0 | AC198: 0 | AD198: 0 | AE198: 0 | AF198: 0 | AG198: 0 | AH198: 0
A200: Terminal value | E200: £ | F200: =SUM(I200:AH200) -> 576038.0449 | I200: =IF(I152=Number_of_years__max,Terminal_value_lower*I154,0) -> 0 | J200: 0 | K200: 0 | L200: 0 | M200: 0 | N200: 0 | O200: 0 | P200: 0 | Q200: 0 | R200: 0 | S200: 576038.0449 | T200: 0 | U200: 0 | V200: 0 | W200: 0 | X200: 0 | Y200: 0 | Z200: 0 | AA200: 0 | AB200: 0 | AC200: 0 | AD200: 0 | AE200: 0 | AF200: 0 | AG200: 0 | AH200: 0
A202: Free Cash Flow | E202: £ | F202: =SUM(I202:AH202) -> -247011.0365 | I202: =I182+I198+I168+I200 -> -123750 | J202: =J182+J198+J168+J200 -> -126843.75 | K202: =IF(K182+K198+K168+K200=0,"",K182+K198+K168+K200) -> -90511.34375 | L202: -66605.68516 | M202: -283569.5316 | N202: 125020.6075 | O202: 156326.6728 | P202: -13075.54329 | Q202: -372222.0852 | R202: -13737.49267 | S202: 561957.1149 | T202: =IF(T182+T198+T168+T200=0,"",T182+T198+T168+T200) ->  | U202: =IF(U182+U198+U168+U200=0,"",U182+U198+U168+U200) -> 
A204: Operating cash | E204: £ | F204: =SUM(I204:AH204) -> 387489.4637 | I204: =I182+I198 -> 0 | J204: =J182+J198 -> 0 | K204: =IF(K182+K198=0,"",K182+K198) -> 39503.5 | L204: =IF(L182+L198=0,"",L182+L198) -> 66659.52969 | M204: 47574.33559 | N204: 125020.6075 | O204: 156326.6728 | P204: -13075.54329 | Q204: -6701.215936 | R204: -13737.49267 | S204: -14080.92999 | X204: =IF(X182+X198=0,"",X182+X198) -> 
A206: Cumulative Cash Flow in year (excluding interest) | I206: =IFERROR(H206+I202,"") -> -123750 | J206: -250593.75 | K206: -341105.0938 | L206: -407710.7789 | M206: -691280.3105 | N206: -566259.703 | O206: -409933.0302 | P206: -423008.5735 | Q206: -795230.6587 | R206: -808968.1514 | S206: -247011.0365 | T206: =IFERROR(S206+T202,"") ->  | U206: =IFERROR(T206+U202,"") -> 
A208: Profit Margin | I208: =IFERROR(-(I182+I198)/I198,0) -> 0 | J208: =IFERROR(-(J182+J198)/J198,0) -> 0 | K208: 3.418181818 | L208: 5.627272727 | M208: 7.836363636 | N208: 10.04545455 | O208: 12.25454545 | P208: -1 | Q208: -1 | R208: -1 | S208: -1 | T208: 0 | U208: 0 | V208: 0 | W208: 0 | X208: 0 | Y208: 0 | Z208: 0 | AA208: 0 | AB208: 0 | AC208: 0 | AD208: 0 | AE208: 0 | AF208: 0 | AG208: 0 | AH208: 0
B212: NPV (Lower) | C212: =NPV(OtherFactorsDiscount_factor_RPI_2.5_lower,I202:AH202) -> -320730.4625 | E212: £
B213: IRR (Lower) | C213: =IRR(I202:AH202) -> -0.06324827302 | E213: %
B214: MIRR (Lower) | C214: =MIRR(I202:AH202,OtherFactorsDiscount_factor_RPI_2.5_lower,OtherFactorsDiscount_factor_RPI_2.5_lower) -> 0.01078259692 | E214: %
B216: Payback (Lower) | C216: =MAX(I216:AH216) -> 0 | E216: Years | F216: =CONCATENATE(INT(ROUND(C216*12,0)/12)," years ", ROUND(C216*12,0)-(INT(ROUND(C216*12,0)/12)*12)," months") -> 0 years 0 months | I216: =IFERROR(IF(AND(J206>0,I206<0),J152-(J206/J202),0),0) -> 0 | J216: =IFERROR(IF(AND(K206>0,J206<0),K152-(K206/K202),0),0) -> 0 | K216: 0 | L216: 0 | M216: 0 | N216: 0 | O216: 0 | P216: 0 | Q216: 0 | R216: 0 | S216: 0 | T216: 0 | U216: 0 | V216: 0 | W216: 0 | X216: 0 | Y216: 0 | Z216: 0 | AA216: 0 | AB216: 0 | AC216: 0 | AD216: 0 | AE216: 0 | AF216: 0 | AG216: 0 | AH216: 0
B218: Yield on cash (Lower) | C218: =-(AVERAGE(I204:AH204))/(Total_capital_lower) -> 0.02909970527

Sheet 5. Notes
B6: 5. NOTES
B8: - To include any additional information/calculations here
B10: Please note clearly where you have made any changes to the model (if any)
B12: Key assumptions
B13: Please be explicit about the base assumptions used to any changes/additional information provided.
B15: Risks
B16: If there are any risks or uncertainty associated with the project and (if any) mitigating actions .
